{"text_format":"3","workbook":"xlsx","n_sheets":2,"sheets":["Критерии оценки","Перечень профессиональных задач"],"read":"whole","date_system":"1900"}

{"sheet":"Критерии оценки","index":0,"n_rows":761,"n_cols":16,"rows_kept":761,"merged":[[5,1,5,2],[174,1,174,2],[292,1,292,2],[485,1,485,2],[681,1,681,2],[760,5,760,7]]}
[]
[null,"Мероприятие",null,"Региональный этап Чемпионата по профессиональному мастерству \"Профессионалы\" в 2026 г"]
[null,"Наименование компетенции",null," Туризм"]
[]
["Код","Подкритерий","Тип аспекта","Аспект","Судейский балл","Методика проверки аспекта","Требование или номинальный размер","Проф. задача","Макс. балл"]
["А","Формирование и обоснование нового туристского продукта",{"$nulls":6},{"$f":"SUM(I7:I174)","v":{"v":23.999999999999982,"d":"24.00"}}]
[1,"Общая характеристика  программы нового туристского продукта в соответствии с заданными критериями",{"$nulls":5},""]
[null,null," И","Представлена общая информации о турпродукте. Перечислены основные характеристики в соответствии с заданием (кейсом)",""," ДА/НЕТ",null,3,{"v":0.2,"d":"0.20"}]
[null,null,"И","Дана характеристика территории путешествия. Представлено административное и географическое расположение территории путешествия(карта, граница, часовой пояс)","","ДА/НЕТ ",null,3,{"v":0.2,"d":"0.20"},{"$nulls":4},{"$f":"IF($H9=N$7,$I9,0)","v":0},0,0]
[null,null,"И","Дана характеристика территории путешествия.Представлены природно-климатические характеристики  территории путешествия ","","ДА/НЕТ",null,3,{"v":0.2,"d":"0.20"},{"$nulls":4},0,0,0]
[null,null,"И","Представлены основные туристские бренды региона ",null,"ДА/НЕТ",null,3,{"v":0.2,"d":"0.20"}]
[null,null,"И","Представлена  информация о транспортной доступности  региона",null," Перечислены все способы добраться в регион;\nУказан полный перечень ключевых транспортных узлов ",null,3,{"v":0.2,"d":"0.20"}]
[null,null,"И"," Присутствует указание на \"нитку\" маршрута, основные локации по маршруту","","ДА/НЕТ",null,3,{"v":0.1,"d":"0.10"}]
[null,null,"И","Представлено название нового турпродукта","","ДА\\НЕТ",null,5,{"v":0.1,"d":"0.10"}]
[null,null,"И","Представлена концепция нового турпродукта","","ДА\\НЕТ",null,2,{"v":0.2,"d":"0.20"}]
[" ",null,"И","Уникальность турпродукта определена по 2 и более показателям","","ДА\\НЕТ",null,2,{"v":0.2,"d":"0.20"}]
[null,null,"И","Представлен портрет потребителя   нового турпродукта: Потребитель  определен по демографическим   характеристикам","","ДА\\НЕТ"," ",6,{"v":0.2,"d":"0.20"}]
[null,null,"И","Представлен портрет потребителя   нового турпродукта: Потребитель определен по  социальным характеристикам",null,"ДА\\НЕТ",null,6,{"v":0.2,"d":"0.20"}]
[null,null,"И","Представлен портрет потребителя   нового турпродукта: Потребитель  определен по психграфическим ценностям   характеристикам",null,"ДА\\НЕТ",null,6,{"v":0.2,"d":"0.20"}]
[null,null,"И","Наличие программы маршрута тура с указанием затрат времени","","ДА\\НЕТ",null,5,{"v":0.1,"d":"0.10"}]
[null,null,"И","Указаны  количество и регулярность заездов по туру","","ДА\\НЕТ",null,5,{"v":0.2,"d":"0.20"}]
[null,null,"И","Продолжительность поездки определена и  соответствует требованиям Заказчика",""," ДА/НЕТ",null,5,{"v":0.2,"d":"0.20"},{"$nulls":4},{"$f":"IF($H22=N$7,$I22,0)","v":0},0,0]
[null,null,"И"," Сезонность поездки определена и соответствует требованиям Заказчика","","ДА\\НЕТ"," ",5,{"v":0.2,"d":"0.20"},{"$nulls":4},0,0,0]
[null,null,"И","Наличие общей карты-схемы маршрута","","ДА\\НЕТ"," ",5,{"v":0.1,"d":"0.10"}]
[null,null,"И","Присутствует указание на протяженность маршрута в общей карте-схеме","","ДА\\НЕТ",null,5,{"v":0.1,"d":"0.10"}]
[null,null,"И","Присутствует указание на продолжительность в общей-карте схеме",null,"ДА/НЕТ",null,5,{"v":0.1,"d":"0.10"}]
[null,null,"И","Наличие карт-схем ежедневных передвижений по программе маршрута тура","","ДА\\НЕТ",null,5,{"v":0.2,"d":"0.20"}]
[2,"Выбор и обоснования транспортных услуг ",null,null," "," ",null,""]
[" "," ","И","Транспортная схема соответствует заданию, цели и задачам нового турпродукта","","Протяженность переездов по маршруту соответствует заданию, цели и задачам турпрдукта;\nПродолжительность переездов по маршруту соответствует  заданию, цели и задачам нового турпродукта;\n Учтена загруженность автодорог при планировании тайминга маршрута тура;\nУчтено состояние автодорог при планировании тайминга маршрута тура"," ",5,{"v":0.4,"d":"0.40"}]
[null,null,"И","Оптимальный выбор транспортных средств, использующихся на маршруте","","Учтено соотношение количества туристов в группе и количество посадочных мест;\nУказана цена перевозки;\nУказаны составляющие комфортабельности ТС;\nОпределена лицензированная компания перевозчик",null,5,{"v":0.4,"d":"0.40"}]
[null,null," С","Оптимальность  выбора транспортных услуг, включенных в маршрут турпродукта","","",null,8,{"v":0.5,"d":"0.50"}]
[{"$nulls":3},"",0,"Выбранные транспортные услуги не соответствуют требованиям задания"]
[{"$nulls":3},"",1,"Выбор транспортных услуг, включенных в туристский продукт, учитывают явные (базовые) потребности потребителей турпродукта"]
[null,null," ","",2,"Выбор транспортных услуг, включенных в туристский продукт, в целом учитывают потребности потребителей турпродукта"]
[{"$nulls":3},"",3,"Выбор транспортных услуг, включенных в туристский продукт, учитывает все потребности потребителей  турпродукта и требования задания (кейса)"]
[3,"Выбор и обоснования услуг по размещению туристов",null,null," "," ",null,"",""]
[null,null,"И","Средства размещения на маршруте  соответствуют заданию и  цели и задачам  нового турпродукта ","","Определена категория средств размещения;\nОбоснован выбор месторасположения средств размещения;\nПредставлена инфраструктура средств размещения;\nВозможности номерного фонда средств размещения позволяют разместить группу туристов определенную заданием",null,5,{"v":0.4,"d":"0.40"}]
[null,null,"И","Выбор средств размещения соответствует заявленной концепции маршрута",null,"ДА/НЕТ",null,5,{"v":0.2,"d":"0.20"}]
[null,null,"И","Указаны и обоснованы  категории номеров, в которых будет производится размещение туристов по маршруту тура","","ДА/НЕТ",null,5,{"v":0.1,"d":"0.10"}]
[null,null,"И","Указан  и обоснован тип размещения туристов в номерах","","ДА/НЕТ",null,5,{"v":0.1,"d":"0.10"}]
[null,null,"С","Оптимальность выбора   услуг по размещению туристов, включенных в туристский продукт","","",null,8,{"v":0.5,"d":"0.50"}]
[{"$nulls":3},"",0,"Выбранные услуги размещения не соответствуют требованиям задания"]
[{"$nulls":3},"",1,"Выбор услуг размещения, включенных в туристский продукт, учитывают явные (базовые) потребности потребителей турпродукта"]
[{"$nulls":3},"",2,"Выбор услуг размещения, включенных в туристский продукт, в целом учитывают потребности потребителей турпродукта"]
[" ",null," ","",3,"Выбор услуг размещения, включенных в туристский продукт, учитывает все потребности потребеителй  турпродукта и требования задания (кейса)"]
[4,"Выбор и обоснования услуг по организации питания туристов",null,null," "," ",null,"",""]
[null,null,"И","Предприятия питания на маршруте соответствуют заданию и  цели нового турпродукта ","","Обоснован выбор и отражены особенности режима питания туристов;\nПри выборе предприятий питание учтено и обосновано их месторасположение;\nПри выборе предприятий питания учтены и обоснованы сбособ(ы) обслуживания   "," ",5,{"v":0.3,"d":"0.30"}]
[null,null,"И","Выбор предприятий питания соответствует заявленной концепции маршрута  ",null,"ДА/НЕТ",null,5,{"v":0.2,"d":"0.20"}]
[null,null,"И","Рекомендованы предприятия для организации питания туристами самостоятельно ",null,"ДА/НЕТ",null,5,{"v":0.2,"d":"0.20"}]
[null,null,"И","При выборе предприятий питания учтены особенности региональной (национальной) кухни.","","указана аутентичность предприятий питания;\nприсутствует информация о блюдах и особенностях кухни (региональная, национальная и т.п.) ",null,5,{"v":0.2,"d":"0.20"}]
[" ",null,"С","Оптимальность выбора   услуг по организации питания  туристов, включенных в новый туристский продукт","","",null,8,{"v":0.5,"d":"0.50"}]
[{"$nulls":3},"",0,"Выбранные услуги по организации питания не соответствуют требованиям задания"]
[{"$nulls":3},"",1,"Выбор услуг по организации питания, включенных в туристский продукт, учитывают явные (базовые) потребности потребителй  турпродукта"]
[{"$nulls":3},"",2,"Выбор услуг по организации питания, включенных в туристский продукт, в целом учитывают потребности потребителей турпродукта"]
[{"$nulls":3},"",3,"Выбор услуг по организации питания, включенных в туристский продукт, учитывает все потребности потрбетелей турпродукта и требования задания (кейса)"]
[5,"Выбор и обоснование экскурсионных услуг"," "," ",{"$nulls":3},"",""]
[null,null,"И","Отбор экскурсионных объектов  показа и посещения соответствуют заданию  ","","ДА/НЕТ "," ",5,{"v":0.1,"d":"0.10"}]
[null,null,"И","Соблюдена логика и последовательность посещения и осмотра объектов экскурсионной программы;",null,"ДА/НЕТ",null,5,{"v":0.2,"d":"0.20"}]
[null,null,"И","Обосновано соответствие эскурсионной программы концепции   тура",null,"ДА\\НЕТ"," ",5,{"v":0.2,"d":"0.20"}]
[null,null,"И","Присутствует указание на наличие в программе маршрута памятников культурно-исторического наследия (ЮНЕСКО, федерального, регионального уровня)","","ДА\\НЕТ",null,5,{"v":0.2,"d":"0.20"}]
[null,null,"И","Присутствует указание на наличие  в программе маршрута аутентичных мест посещения, являющихся «визитной карточкой» региона","","ДА\\НЕТ",null,5,{"v":0.2,"d":"0.20"}]
[null,null,"И","Представленные туристские бренды используются в программе нового турпродукта ",null,"ДА/НЕТ",null,5,{"v":0.2,"d":"0.20"}]
[null,null,"С","Оптимальность выбора   услуг по экскурсионному обслуживанию туристов, включенных в новый туристский продукт","","",null,8,{"v":0.5,"d":"0.50"}]
[null,null," ","",0,"Выбранные экскурсионные услуги не соответствуют требованиям задания"]
[{"$nulls":3},"",1,"Выбор экскурсионных услуг включенных в туристский продукт, учитывают явные (базовые) потребности потребителей  турпродукта"]
[{"$nulls":3},"",2,"Выбор экскурсионных услуг включенных в туристский продукт, в целом учитывают потребности потребителей  турпродукта"]
[{"$nulls":3},"",3,"Выбор экскурсионных услуг включенных в туристский продукт, учитывает все потребности потребителей турпродукта и требования задания (кейса)"]
[6,"Организация интерактивных программ и предложенные внепрограммные досуговые мероприятия (аттракции) в местах пребывания туристов",null,null," "," ",null,"",""]
[null,null,"И","Разнообразие представленных в маршруте интерактивных программ (не менее трех)","","ДА\\НЕТ",null,2,{"v":0.2,"d":"0.20"}]
[null,null,"И","Соответствие содержания интерактивных программ  концепции турпродукта","","ДА\\НЕТ",null,2,{"v":0.2,"d":"0.20"}]
[null,null,"И"," Разнообразие представленных в программе тура внепрограммных досуговых мероприятий(аттракций) ( не менее двух)","","ДА\\НЕТ",null,2,{"v":0.2,"d":"0.20"},{"$nulls":4},{"$f":"IF($H71=N$7,$I71,0)","v":0},0,0]
[null,null,"С","Выбор внепрограммных досуговых мероприятий (аттракций) в месте пребывания соответствуют заданию и  цели нового турпродукта ","","",null,2,{"v":0.3,"d":"0.30"}]
[{"$nulls":3},"",0,"В презентации отсутствует информация об аттракциях в месте пребывания"]
[" ",null," ","",1,"Предложенные аттракции не полностью соответствуют заданию и  цели нового турпродукта "]
[{"$nulls":3},"",2,"Представленные аттракции в полной мере соответствуют заданию и  цели нового турпродукта "]
[{"$nulls":3},"",3,"Выбор представленных аттракций обоснован и отражает специфические особенности задания и  цели нового турпродукта "]
[7," Выбор и обоснование иных (дополнительных) услуг ,безопасность и туристские формальности",null,null," "," ",null,"",""]
[null,null,"И","Наличие в программе турпродукта услуг по страхованию туристов","","Представлена верная информация о страховой компании;\nПредставлена информация о программе страхования ;\nПредставлена информация размере страховой суммы",null,5,{"v":0.3,"d":"0.30"}]
[null,null,"И","  Представлена информация о необходимых инстуктажах по ТБ и обязательная информация, доводимая до туриста ",""," ДА/НЕТ",null,5,{"v":0.2,"d":"0.20"}]
[null,null,"И","Наличие указаний на правовые нормы, конкретные  ГОСТы ","","ДА\\НЕТ",null,5,{"v":0.2,"d":"0.20"}]
[8,"Качество и полнота программы нового туристского продукта"]
[null,null," С"," Качество и полнота представления территории путешествия ","","",null,2,{"v":0.7,"d":"0.70"}]
[null,null," ","",0," Представлено не верное обоснование и представление территории"]
[null,null," ","",1," Низкая степень обоснования и представления территории путешествия"]
[{"$nulls":3},"",2,"Средняя степень обоснования. Представлена общая характеристика территории путешествия  без обоснования ее отдельных особенностей и уникальности. "]
[{"$nulls":3},"",3,"Высокая степень обоснования. Представлена полная характеристика территории путешествия, присутствует указание на ее уникальность и самобытность.   "]
[null,null," С","Качество обоснования концепции нового турпродукта","","",null,2,{"v":0.6,"d":"0.60"}]
[null,null," ","",0,"Концепция не обоснована"]
[null,null," ","",1,"Концепция обоснована с учетом требований задания (кейса)"]
[{"$nulls":3},"",2,"Концепции нового турпродукта обоснована с учетом требований задания (кейса) и с учетом возможностей туристского-рекреационного потенциала определенного региона либо присутствует обоснование оригинального замысла и идеи"]
[{"$nulls":3},"",3,"Концепции нового турпродукта обоснована с учетом требований задания (кейса) и с учетом возможностей туристского-рекреационного потенциала определенного региона, присутствует обоснование цели, оригинального замысла и идеи"]
[null,null,"С","Соответствие программы нового туристского продукта заданию  с учетом всех имеющихся особенностей запроса","","",null,5,{"v":1.2,"d":"1.20"}]
[{"$nulls":3},"",0,"Программа туристского маршрута не представлена"]
[" ",null," ","",1,"Программа туристского маршрута   не достаточно убедительна по содержанию, выполнена на невысоком содержательном и техническом уровне и не в полном объеме  учитывает все особенности задания (кейса)"]
[{"$nulls":3},"",2,"Программа туристского маршрута   убедительна по содержанию, выполнена на высоком техническом уровне, но не в полном объеме учитывает все особенности задания (кейса)"]
[{"$nulls":3},"",3,"Программа туристского маршрута убедительна по содержанию, оптимальна по форме подачи, полностью учитывает все особенности задания (кейса)"]
[null,null,"С","Креативность и оригинальность программы нового туристского продукта","","",null,2,{"v":0.8,"d":"0.80"}]
[{"$nulls":3},"",0,"Программа туристского маршрута не является уникальной  разработкой. Отсутствует оригинальность и креативность в презентации"]
[null,null," ","",1,"Низкая степень обоснования. Программа туристского маршрута содержит элементы новизны и уникальности. Креативность и оригинальность проявлены слабо"]
[{"$nulls":3},"",2,"Программа нового туристского маршрута в целом обоснована и соответствует заданию. Креативна, но недостаточно оригинальна по содержанию и форме подачи информации"]
[{"$nulls":3},"",3,"Программа туристского маршрута является уникальной  разработкой. Программа креативна и оригинальна по содержанию и форме подачи информации"]
[null,null,"С","Качество и полнота учета интересов и  предпочтений потребителей туристских услуг при формировании программы нового турпродукта","",""," ",8,{"v":0.8,"d":"0.80"}," "]
[{"$nulls":3},"",0,"Качество учета задания и интересов низкое. В программе тура не учтены специфические особенности потребительской аудитории указанные в задании (кейсе)"]
[null,null," ","",1,"Качество учета задания и интересов среднее. В программе тура частично учтены специфические особенности потребительской  аудитории указанные в задании (кейсе)"]
[{"$nulls":3},"",2,"Качество учета задания и интересов  высокое. Программа тура в целом учитывает специфические особенности потребительской аудитории указанные в задании (кейсе)"]
[{"$nulls":3},"",3,"Качество учета задания и интересов  высокое. В программе тура полностью учтены специфические особенности потребительской аудитории указанные в задании (кейсе)"]
[" ",null,"С","Обоснование выбора основных туристских услуг в ходе презентации нового туристского продукта","","",null,5,{"v":0.5,"d":"0.50"}]
[{"$nulls":3},"",0,"Выбор основных туристских услуг не обоснован и не раскрыт в презентации"]
[{"$nulls":3},"",1,"В ходе презентации не все туристские услуги были обоснованы"]
[{"$nulls":3},"",2,"Выбор всех основных туристских услуг обоснован, но аргументация недостаточно убедительная"]
[{"$nulls":3},"",3,"Выбор основных туристских услуг обоснован и раскрыт в ходе презентации полностью"]
[8,"Расчет себестоимости и  стоимости нового туристского продукта "," "," ",{"$nulls":3},"",""]
[null,null,"И","Представлены расчеты себестоимости транспортных услуг","","ДА\\НЕТ",null,4,{"v":0.2,"d":"0.20"}]
[null,null,"И","Учтены все составляющие транспортного обслуживания  по маршруту при расчете себестоимости","","ДА\\НЕТ",null,4,{"v":0.2,"d":"0.20"}]
[null,null,"И","Арифметические операции при расчете себестоимости  транспортных услуг произведены,  верно","","ДА\\НЕТ",null,4,{"v":0.2,"d":"0.20"}]
[null,null,"И","Представлены  расчеты себестоимости услуг размещения и проживания","","ДА\\НЕТ",null,4,{"v":0.2,"d":"0.20"}]
[" ",null,"И","Учтены все объекты размещения по программе тура при расчете себестоимости размещения","","ДА\\НЕТ",null,4,{"v":0.2,"d":"0.20"}]
[null,null,"И","При расчете размещения и проживания учтены следующие   факторы: количество дней/ночей, категории номеров","","При расчете размещения и проживания учтено количество дней/ночей;\nПри расчете размещения и проживания учтены категории номеров",null,4,{"v":0.2,"d":"0.20"}]
[null,null,"И","Арифметические операции при расчете себестоимости размещения и проживания произведены,  верно","","ДА\\НЕТ",null,4,{"v":0.2,"d":"0.20"}]
[null,null,"И","Представлены расчеты себестоимости питания","","ДА\\НЕТ",null,4,{"v":0.2,"d":"0.20"}]
[null,null,"И","Учтены все предприятия питания по программе тура при расчете себестоимости питания","","ДА\\НЕТ",null,4,{"v":0.2,"d":"0.20"}]
[null,null,"И","Арифметические операции при расчете себестоимости питания произведены,  верно","","ДА\\НЕТ",null,4,{"v":0.2,"d":"0.20"}]
[null,null,"И","Представлены расчеты себестоимости  экскурсионного обслуживания","","ДА\\НЕТ",null,4,{"v":0.2,"d":"0.20"}]
[null,null,"И","Учтены все экскурсионные услуги, входящие в  программу турпродукта","","ДА\\НЕТ",null,4,{"v":0.2,"d":"0.20"}]
[null,null,"И","Арифметические операции при расчете себестоимости экскурсионного обслуживания произведены,  верно","","ДА\\НЕТ",null,4,{"v":0.2,"d":"0.20"}]
[" ",null,"И","Представлен расчет  себестоимости дополнительных  услуг по туру","","ДА\\НЕТ",null,4,{"v":0.2,"d":"0.20"}]
[null,null,"И","Учтены иные услуги, входящие в  программу тура (услуги страхования и т.п.)","","ДА/НЕТ",null,4,{"v":0.2,"d":"0.20"}]
[null,null,"И","Арифметические операции при расчете себестоимости иных услуг по туру  произведены,  верно","","ДА\\НЕТ",null,4,{"v":0.2,"d":"0.20"}]
[null,null,"И","Представлена итоговая себестоимость тура на группу/человека","","ДА\\НЕТ",null,4,{"v":0.2,"d":"0.20"}]
[null,null,"И","Арифметические операции при расчете себестоимости тура на группу/человека произведены,  верно","","ДА\\НЕТ",null,4,{"v":0.2,"d":"0.20"}]
[null,null,"И","Представлена итоговая стоимость тура на группу/человека","","ДА\\НЕТ",null,4,{"v":0.2,"d":"0.20"}]
[null,null,"И","В ценовой структуре турпродукта учтена наценка туроператора","","ДА\\НЕТ",null,4,{"v":0.2,"d":"0.20"}]
[null,null,"И","В ценовой структуре турпродукта учтено вознаграждение турагента","","ДА\\НЕТ",null,4,{"v":0.2,"d":"0.20"}]
[null,null,"И","Ценовая структура турпродукта в процентном соотношении представлена в соответствии с практикой российского турбизнеса","","ДА\\НЕТ",null,4,{"v":0.1,"d":"0.10"}]
[9,"Составление аннотации тура и демонстрация умения устно излагать информацию на иностранном языке. "]
[" ",null,"С","Соответствие текста аннотации на русском и английском языках заявленным требованиям к подобного рода информации","","",null,4,{"v":0.3,"d":"0.30"}]
[{"$nulls":3},"",0,"Текст аннотации на русском и английском языках не соответствует заявленным требованиям к подобного рода информации"]
[" ",null," ","",1,"Текст аннотации на русском и английском языках соответствует в недостаточной степени заявленным требованиям к подобного рода информации"]
[{"$nulls":3},"",2,"Текст аннотации на русском и английском языках соответствует в полной мере заявленным требованиям к подобного рода информации, но недостаточно информативен"]
[{"$nulls":3},"",3,"Текст аннотации на русском и английском языка соответствует всем заявленным требованиям к подобного рода информации"]
[null,null,"С","Демонстрация умения устно излагать информацию о туре на английском языке","","",null,1,{"v":0.5,"d":"0.50"}]
[{"$nulls":3},"",0,"Изложение информации  о туре на английском языке отсутствует"]
[null,null," ","",1,"Участник демонстрирует низкое владение английским языком. Читает информацию о туре с листа или с электронной презентации."]
[{"$nulls":3},"",2,"Участник в достаточной степени демонстрирует  владение английским языком. Излагает информацию о туре изредка обращаясь к тексту"]
[{"$nulls":3},"",3,"Участника свободно  излагает информацию о туре на английском языке"]
[10,"Качество презентации",null,null," "," ",null,"",""]
[null,null,"И","Презентация не превысила выделенный лимит времени (тайм-менеджмент)","","ДА\\НЕТ",null,8,{"v":0.2,"d":"0.20"}," "]
[null,null,"И","Время, выделенное на презентацию  использовано более чем на 95%","","ДА\\НЕТ",null,8,{"v":0.2,"d":"0.20"}," "]
[null,null,"И","Наличие в презентации указания на использованные в подготовке презентации открытых актуальных источников (не менее 4)","","ДА\\НЕТ",null,3,{"v":0.2,"d":"0.20"}]
[null,null,"С","Качество выступления",{"$nulls":3},8,{"v":0.5,"d":"0.50"}," ",{"$nulls":3},{"$f":"IF($H150=N$7,$I150,0)","v":0},0,0]
[{"$nulls":4},0,"Участник читает с листов и/или со слайдов большую часть презентации",{"$nulls":7},0,0,0]
[{"$nulls":4},1,"Участник изредка обращается к вспомогательным материалам",{"$nulls":7},0,0,0]
[{"$nulls":4},2,"Участник свободно излагает информацию, без использования вспомогательных материалов",{"$nulls":7},0,0,0]
[{"$nulls":4},3,"Участник не читает с листов и/или со слайдов, коммуницируют с аудиторией/экспертами и встраивант реакции//ответы аудитории в свою презентацию",{"$nulls":7},0,0,0]
[null,null,"С","Культура речи","","",null,1,{"v":0.9,"d":"0.90"}]
[{"$nulls":3},"",0,"Отсутствие культуры речи .В презентации не использована специальная терминология, не продемонстрировано владение понятийным аппаратом"]
[{"$nulls":3},"",1,"В выступлении частично присутствуют речевые и стилистические ошибки.  В презентации частично использована специальная терминология и слабо продемонстрировано владение понятийным аппаратом"]
[{"$nulls":3},"",2,"В выступлении  соблюдены базовые этико-речевые нормы. Грамотно и уместно используются специальные термины, понятия, географические названия."]
[" ",null," ","",3,"Высокий уровень культуры речи Полностью соблюдаются этико-речевые нормы.Высокая степень владения понятийным аппаратом и специальной терминологией. "]
[null,null,"С","Смысловое единство и  логика выступления .","","",null,1,{"v":0.7,"d":"0.70"}]
[{"$nulls":3},"",0,"Отсутствие   смыслового единства и логики выступления."]
[{"$nulls":3},"",1,"В выступлении частично прослеживается взаимосвязь смыслового единства и логики."]
[null,null," ","",2,"Выступление в целом логично, но не в полном объеме структурировано по смыслу."]
[null,null," ","",3,"Выступление имеет единый стиль, смысл, логику."]
[null,null,"С","Оформление презентации",{"$nulls":3},8,{"v":0.5,"d":"0.50"}," "]
[{"$nulls":4},0,"Отсутствует единый стиль оформления, структура и логика. Присутствуют грамматические ошибки на слайдах, , текст читается с трудом (мелкий шрифт, разные и сливающиеся шрифты, неприемлемая контрастность фона и шрифта)."]
[{"$nulls":4},1,"Частично соблюден единый стиль оформления презентации. Частично присутстсвует структура и логика построения презентации. Информация написана орфографически грамотно, текст хорошо читается (разборчивость и читаемость букв, слов, фраз), используется единый тип шрифта. "]
[{"$nulls":4},2,"Единый стиль оформления. Присутстсвует структура и логика построения презентации. Информация в презентации написана орфографически грамотно, текст хорошо читается (разборчивость и читаемость букв, слов, фраз), используется единый тип шрифта."]
[{"$nulls":4},3,"Профессиональная презентация, имеет четкую структуру и логику построения презентации. Информация написана орфографически грамотно, единый стиль оформления, текст хорошо читается (разборчивость и читаемость букв, слов, фраз), используется единый тип шрифта. Присутствуют дополнительные графические и визуальные элементы оформления, соответствующие тематике задания "]
[11,"Охрана труда"," "," ","","",null," "," "]
[null,null,"И","В ходе выполнения модуля КЗ участником были соблюдены базовые требования охраны труда и техники безопасности   "," "," ДА/НЕТ",null,7,{"v":0.5,"d":"0.50"}]
[{"$nulls":3},""," "," "]
[{"$nulls":3},""," "," "]
[" ",null," ",""," "," "]
["Б","Продвижение туристского направления",{"$nulls":6},{"$f":"SUM(I176:I292)","v":{"v":17.999999999999993,"d":"18.00"}}]
[1," Общая информация о туристском  направлении(локации)",null,null," "," "]
[null,null,"И","  Присутствует географическое расположение региона посещения (карта, граница, часовой пояс, природные условия)",null," ДА/НЕТ",null,3,{"v":0.2,"d":"0.20"}]
[null,null,"И","Представлена краткая характеристика турисистско-реакреационного потенциала  региона посещения;",null,"ДА/НЕТ",null,3,{"v":0.2,"d":"0.20"}]
[null,null,"И","Присутствует информация о состоянии дорожно-транспортной инфраструктуры региона",null,"ДА/НЕТ",null,3,{"v":0.1,"d":"0.10"}]
[null,null,"И","Присутствует историческая справка о туристском направлении (локации)",null,"ДА/НЕТ",null,3,{"v":0.2,"d":"0.20"}]
[null,null,"И","Присутствует информация о инфраструктуре объекта продвижения;",null,"ДА/НЕТ",null,3,{"v":0.2,"d":"0.20"}]
[null,null,"И","  Присутствует информация о туристском потенциале объекта продвижения",null," ДА/НЕТ",null,3,{"v":0.3,"d":"0.30"}]
[null,null,"И","Дано указание(сформулирована) основная идея (миссия) туристского направления(локации)",null,"ДА/НЕТ",null,3,{"v":0.2,"d":"0.20"}]
[null,null,"И","Уникальность туристского направления( локации)  определена по 4 и более показателям",null,"ДА/НЕТ",null,3,{"v":0.2,"d":"0.20"}]
[null,null,"И","Выявлены и обоснованы сильные стороны объекта продвижения",null,"ДА/НЕТ",null,3,{"v":0.3,"d":"0.30"}]
[null,null,"И","Выявлены и обоснованы слабые стороны (недостатки) объекта продвижения",null,"ДА/НЕТ",null,3,{"v":0.3,"d":"0.30"}]
[null,null,"И","Выявлены и обоснованы факторы и риски, препятствующие развитию туризма на объекте продвижения",null,"ДА/НЕТ",null,3,{"v":0.3,"d":"0.30"}]
[null,null,"И","Выявлены и обоснованы возможности развития туризма на объекте продвижения",null,"ДА/НЕТ",null,3,{"v":0.3,"d":"0.30"}]
[2,"Конкурентное преимущество туристского направления (локации)"]
[" ",null,"И","Представлена верно информация о прямых конкурентах туристского объекта продвижения",""," ДА/НЕТ",null,6,{"v":0.3,"d":"0.30"}]
[null,null,"И","Представлена верно информация о косвенных конкурентах туристского объекта продвижения",null,"ДА/НЕТ",null,6,{"v":0.2,"d":"0.20"}]
[null,null,"И","Определены   конкурентные преимущества «своего» туристского направления (локации) (не менее 2).","","ДА\\НЕТ",null,6,{"v":0.3,"d":"0.30"}]
[null,null,"И","Представлены преимущества туристского направления(локации) в сравнении с конкурентами","","ДА\\НЕТ",null,6,{"v":0.2,"d":"0.20"}]
[3,"Целевая аудитория программы продвижения туристского направления ( локации) ",null,null," "," "]
[null,null,"И","Целевая аудитория определена верно","","Целевая аудитория определена по 1 характеристике; по 2 характеристикам; по 3 и более характеристикам",null,6,{"v":0.3,"d":"0.30"}]
[null,null,"И","Ядро целевой аудитории определено  верно","","Ядро целевой аудитории определено по 1 характеристике;   по 2 характеристикам; по 3 и более характеристикам",null,6,{"v":0.3,"d":"0.30"}]
[" "," ","И","Представлено верно отношение целевой группы к сфере b2c","","ДА\\НЕТ",null,6,{"v":0.2,"d":"0.20"}]
[" ",null,"И","Представлено верно  отношение целевой группы к  сфере b2b","","ДА\\НЕТ",null,6,{"v":0.2,"d":"0.20"}]
[null,null,"И","Представлено верно отношение целевой группы к  сфере b2g","","ДА\\НЕТ",null,6,{"v":0.2,"d":"0.20"}]
[null,null,"С","Анализ качества определения целевой аудитории","","",null,3,{"v":1.2,"d":"1.20"}]
[null,null," ","",0,"Низкое качество. Целевая аудитория не определена, либо определена неверно.",null,null," "]
[{"$nulls":3},"",1,"Целевая аудитория определена, но не по всем основным параметрам. Представленная характеристика целевой аудитории  не отражена в обосновании стратегии продвижения и выбранных инструментах продвижения"]
[{"$nulls":3},"",2,"Целевая аудитория определена по всем базовым характеристикам. Характер целевой аудитории отражен,  но не достаточно убедительно раскрыт в обосновании стратегии продвижения и выбранных инструментах продвижения"]
[{"$nulls":3},"",3,"Целевая аудитория определена и раскрыта по всем базовым характеристикам. Максимально учтены все специфические особенности целевой аудитории. Участник убедительно обосновал выбор стратегии и инструментов продвижения в привязке к целевой аудитории"]
[4,"Полнота разработки программы продвижения туристского направления ( локации)",null,null," "," "]
[null,null," И","Указан основной способ продвижения туристского направления ( локации)  в соответствии с целевой аудиторией","","ДА\\НЕТ",null,6,{"v":0.2,"d":"0.20"}]
[null,null,"И"," Указано верно на объективное позиционирование турисиского направления ( локации)",""," ДА/НЕТ","",6,{"v":0.2,"d":"0.20"}]
[null,null,"И","Указано верно на  субъективное позиционирование турисиского направления ( локации)",null,"ДА/НЕТ",null,6,{"v":0.2,"d":"0.20"}]
[null,null,"И","Наличие плана-графика продвижения  объекта продвижения",""," ДА/НЕТ",null,6,{"v":0.1,"d":"0.10"}]
[" ",null,"И","Представлены верно сроки в плане-графике продвижения  туристского направления ( локации) ",""," ДА/НЕТ",null,6,{"v":0.2,"d":"0.20"}]
[null,null,"И","Представлена верно продолжительность в плане-графике продвижения  туристского направления ( локации",null,"ДА/НЕТ",null,6,{"v":0.2,"d":"0.20"}]
[null,null,"И","Представлено верно указание на офф-лайн инструменты продвижения ( не менее трех)","","ДА/НЕТ",null,6,{"v":0.3,"d":"0.30"}]
[null,null,"И","Представлено верно указание на он-лайн инструменты продвижения( не менее трех)","","ДА/НЕТ",null,6,{"v":0.2,"d":"0.20"}]
[null,null,"И","Наличие расчета бюджета  программы продвижения  туристского направления ( локации) ",""," ДА/НЕТ",null,6,{"v":0.2,"d":"0.20"}]
[null,null,"И","Соотнесен верно  бюджет рекламной компании с этапами реализации программы продвижения","","ДА/НЕТ",null,6,{"v":0.2,"d":"0.20"}]
[null,null,"И","Определена верно схема расчета затрат согласно предложенных  инструментов продвижения (стоимость изготовление рекламных  материалов, трансляций, рекламных акций, кликов, SEO и т.д.)","","ДА/НЕТ",null,6,{"v":0.2,"d":"0.20"}]
[null,null,"И","Наличие в  программе продвижения событийных  мероприятий, рассчитанных на массового туриста","","ДА/НЕТ",null,6,{"v":0.2,"d":"0.20"}]
[null,null,"И"," Сформулирован смысл основного рекламного сообщения/предложения в программе продвижения событийного   мероприятия   ","","ДА/НЕТ",null,6,{"v":0.2,"d":"0.20"}]
[null,null,"И"," Определены актуальные и реалистичные цели и задачи, которые ставятся перед разработчиками  программы продвижения событийного   мероприятия ",null,"ДА/НЕТ",null,6,{"v":0.2,"d":"0.20"}]
[null,null,"С","Реалистичность представленных  инструментов продвижения объекта продвижения","","",null,6,{"v":0.8,"d":"0.80"}]
[{"$nulls":3},"",0,"Представленные инструменты не актуальны и не используются в практике туристского маркетинга"]
[{"$nulls":3},"",1,"Инструменты продвижения реалистичны, но не имеют четкой формулировки с указанием на технологию продвижения"]
[" ",null," ","",2,"Предложенные инструменты продвижения реалистичны, соответствуют заявленной целевой аудитории, представлены с четкой формулировкой на технологию использования"]
[{"$nulls":3},"",3,"Предложенные инструменты продвижения реалистичны, соответствуют заявленной целевой аудитории, представлены с четкой формулировкой на технологию использования содержащей авторский (инновационный, творческий) подход"]
[null,null,"С","Реалистичность бюджета программы продвижения  с учетом особенностей «домашнего» региона","","",null,6,{"v":0.5,"d":"0.50"}]
[{"$nulls":3},"",0,"Затраты не реалистичны"]
[{"$nulls":3},"",1,"Затраты на программу продвижения слабо реалистичны и не соответствуют стратегии и/или инструментам продвижения турисиского направления ( локации)"]
[null,null," ","",2,"Затраты на программу продвижения реалистичны, но не в полной мере соответствуют стратегии и/или инструментам продвижения турисиского направления ( локации)"]
[{"$nulls":3},"",3,"Приведены реалистичные затраты на программу продвижения, адекватные по отношению к маркетинговой стратегии и выбранным инструментам продвижения турисиского направления ( локации)"]
[null,null,"С","Предъявление участником программы продвижения туристского направления ( локации)","","",null,1,{"v":1,"d":"1.00"}]
[{"$nulls":3},"",0,"Отсутствует программа продвижения "]
[{"$nulls":3},"",1,"Уровень разработки программы продвижения   низкий. Отсутствует график продвижения  , использованы типовые инструменты продвижения."]
[" ",null," ","",2,"Уровень разработки программы продвижения средний. Предъявлен график продвижения  с использованием разнообразных типовых инструментов продвижения"]
[{"$nulls":3},"",3,"Уровень разработки программы продвижения высокий. Предъявлен детальный график продвижения  с обоснованием выбора разнообразных нестандартных on-line, off-line- инструментов продвижения"]
[null,null,"С","Креативность и оригинальность программы событийного или рекламно-информационного мероприятия","","",null,1,{"v":1,"d":"1.00"}]
[{"$nulls":3},"",0,"Программа событийного мероприятия не является уникальной и оригинальной  разработкой. Отсутствует  креативность в  подаче материала."]
[{"$nulls":3},"",1,"Низкая степень обоснования. Программа событийного мероприятия содержит элементы новизны и уникальности. Креативность и оригинальность проявлены слабо"]
[{"$nulls":3},"",2,"Программа событийного мероприятия в целом обоснована и соответствует заданию. Креативна, но недостаточно оригинальна по содержанию и форме подачи информации"]
[{"$nulls":3},"",3,"Программа событийного мероприятия  является оригинальной разработкой. Высокий уровень креативности в подаче материала."]
[5,"Разработка и оформление рекламного буклета событийного мероприятия   мероприятия"," "," ",{"$nulls":3},""," "]
[null,null,"И","Присутствует и  верно представлена информация о регионе посещения; ",""," ДА/НЕТ",null,5,{"v":0.1,"d":"0.10"}]
[null,null,"И","Присутствует и верно представлена информация об объекте продвижения;",null,"ДА/НЕТ",null,5,{"v":0.2,"d":"0.20"}]
[null,null,"И","Присутствует информация о программе мероприятия ",null,"ДА/НЕТ",null,5,{"v":0.2,"d":"0.20"}]
[null,null,"И","Присутствует информация об организаторах событийного мероприятия ",""," ДА/НЕТ",null,5,{"v":0.1,"d":"0.10"}]
[null,null,"И","Присутствует логотип и слоган событийного мероприятия ",null," ДА/НЕТ",null,5,{"v":0.2,"d":"0.20"}]
[null,null,"И","Пристутствует информация об условиях посещения событийного мероприятия ",null,"ДА/НЕТ",null,5,{"v":0.1,"d":"0.10"}]
[" ",null,"И","Присутствует призыв к действию потребителей","","ДА/НЕТ",null,5,{"v":0.1,"d":"0.10"}]
[null,null,"И","Присутствуют элементы фирменного стиля объекта продвижения",null,"ДА/НЕТ",null,5,{"v":0.1,"d":"0.10"}]
[null,null,"И","Соблюдена структура композиции буклета (позиция информационных блоков,  чередование текстовой и графической составляющих и их визуальная связь между собой)","","ДА/НЕТ",null,5,{"v":0.1,"d":"0.10"}]
[null,null,"И","Соблюдены требования к форматированию\n(Отступы от мест сгибов, разбивка на абзацы, красная строка, использование шрифтов)","","ДА/НЕТ",null,5,{"v":0.1,"d":"0.10"}]
[null,null,"И","Соблюдены требования к оформлению рекламного буклета(памятки) / Лифлет ЕВРО в 2 сложения, (в развороте А4) двухсторонний","","ДА\\НЕТ",null,5,{"v":0.2,"d":"0.20"}]
[null,null,"С","Качество разработки предоставленного рекламного буклета(памятки)","","",null,2,{"v":0.3,"d":"0.30"}]
[null,null," ","",0,"Буклет не представлен или не соответствует стандартам оформления таких документов"]
[{"$nulls":3},"",1,"Буклет представлен, но выполнен не выразительно, отсутствует оригинальность, объекты расположены гармонично"]
[{"$nulls":3},"",2,"Буклет представлен, выполнен выразительно, объекты расположены гармонично, но отсутствует креатив"]
[{"$nulls":3},"",3,"Буклет представлен, выполнен выразительно, объекты расположены гармонично"]
[null,null,"С","Креативность и оригинальность разработанного рекламного буклета(памятки)","","",null,2,{"v":0.3,"d":"0.30"}]
[" ",null," ","",0,"Буклет не является уникальной и оригинальной разработкой. Отсутствует креативность в подаче материала."]
[{"$nulls":3},"",1,"Низкий уровень исполнения. Буклет содержит элементы новизны и уникальности. Креативность и оригинальность проявлены слабо"]
[{"$nulls":3},"",2,"Представленный буклет в целом соответствует разрабатываемому и продвигаемому событийному мероприятию. Присутствует креатив, но недостаточно оригинален по содержанию и форме подачи информации"]
[{"$nulls":3},"",3,"Представленный буклет является оригинальной разработкой. Высокий уровень креативности."]
[null,null,"С","Соответствие рекламного  буклета(памятки) цели и задачам событийного мероприятия",{"$nulls":3},2,{"v":0.3,"d":"0.30"}]
[{"$nulls":4},0,"Буклет не представлен или не соответствует  цели и задачам мероприятия"]
[{"$nulls":4},1,"Буклет не достаточно убедителен по содержанию, выполнен на среднем содержательном уровне и не в полном объеме соответствует цели и задачам событийного мероприятия"]
[{"$nulls":4},2,"Буклет убедителен по содержанию, выполнен на хорошем содержательном уровне, но не в полном объеме соответствует  цели и задачам событийного мероприятия"]
[{"$nulls":4},3,"Буклет убедителен по содержанию, полностью соответствует цели и задачам событийного мероприятия"]
[6,"Качество презентации",null,null," "," "]
[null,null,"И","Презентация не превысила выделенный лимит времени (тайм-менеджмент)","","ДА\\НЕТ",null,8,{"v":0.2,"d":"0.20"}," "]
[null,null,"И","Время, выделенное на презентацию  использовано более чем на 95%","","ДА\\НЕТ",null,8,{"v":0.2,"d":"0.20"}," "]
[null,null,"И","Наличие в презентации указания на использованные в подготовке презентации открытых актуальных источников (не менее 4)","","ДА\\НЕТ",null,3,{"v":0.2,"d":"0.20"}]
[null,null,"С","Качество выступления",{"$nulls":3},8,{"v":0.5,"d":"0.50"}," ",{"$nulls":3},{"$f":"IF($H271=N$7,$I271,0)","v":0},0,0]
[{"$nulls":4},0,"Участник читает с листов и/или со слайдов большую часть презентации",{"$nulls":7},0,0,0]
[{"$nulls":4},1,"Участник изредка обращается к вспомогательным материалам",{"$nulls":7},0,0,0]
[{"$nulls":4},2,"Участник свободно излагает информацию, без использования вспомогательных материалов",{"$nulls":7},0,0,0]
[{"$nulls":4},3,"Участник не читает с листов и/или со слайдов, коммуницируют с аудиторией/экспертами и встраивант реакции//ответы аудитории в свою презентацию",{"$nulls":7},0,0,0]
[null,null,"С","Культура речи","","",null,1,{"v":0.9,"d":"0.90"}]
[{"$nulls":3},"",0,"Отсутствие культуры речи .В презентации не использована специальная терминология, не продемонстрировано владение понятийным аппаратом"]
[{"$nulls":3},"",1,"В выступлении частично присутствуют речевые и стилистические ошибки.  В презентации частично использована специальная терминология и слабо продемонстрировано владение понятийным аппаратом"]
[{"$nulls":3},"",2,"В выступлении  соблюдены базовые этико-речевые нормы. Грамотно и уместно используются специальные термины, понятия, географические названия."]
[" ",null," ","",3,"Высокий уровень культуры речи Полностью соблюдаются этико-речевые нормы.Высокая степень владения понятийным аппаратом и специальной терминологией. "]
[null,null,"С","Оформление презентации",{"$nulls":3},8,{"v":0.3,"d":"0.30"}," "]
[{"$nulls":4},0,"Отсутствует единый стиль оформления, структура и логика. Присутствуют грамматические ошибки на слайдах, , текст читается с трудом (мелкий шрифт, разные и сливающиеся шрифты, неприемлемая контрастность фона и шрифта)."]
[{"$nulls":4},1,"Частично соблюден единый стиль оформления презентации. Частично присутстсвует структура и логика построения презентации. Информация написана орфографически грамотно, текст хорошо читается (разборчивость и читаемость букв, слов, фраз), используется единый тип шрифта. "]
[{"$nulls":4},2,"Единый стиль оформления. Присутстсвует структура и логика построения презентации. Информация в презентации написана орфографически грамотно, текст хорошо читается (разборчивость и читаемость букв, слов, фраз), используется единый тип шрифта."]
[{"$nulls":4},3,"Профессиональная презентация, имеет четкую структуру и логику построения презентации. Информация написана орфографически грамотно, единый стиль оформления, текст хорошо читается (разборчивость и читаемость букв, слов, фраз), используется единый тип шрифта. Присутствуют дополнительные графические и визуальные элементы оформления, соответствующие тематике задания "]
[null,null,"С","Смысловое единство и  логика выступления .","","",null,1,{"v":0.5,"d":"0.50"}]
[{"$nulls":3},"",0,"Отсутствие   смыслового единства и логики выступления."]
[{"$nulls":3},"",1,"В выступлении частично прослеживается взаимосвязь смыслового единства и логики."]
[null,null," ","",2,"Выступление в целом логично, но не в полном объеме структурировано по смыслу."]
[null,null," ","",3,"Выступление имеет единый стиль, смысл, логику."]
[11,"Охрана труда"," "," ","","",null," "," "]
[null,null,"И","В ходе выполнения модуля КЗ участником были соблюдены базовые требования охраны труда и техники безопасности   "," "," ДА/НЕТ",null,7,{"v":0.5,"d":"0.50"}]
["В","Обработка и оформление заказа клиента по подбору пакетного тура",{"$nulls":6},{"$f":"SUM(I294:I485)","v":{"v":25.999999999999986,"d":"26.00"}}]
[1,"Общая характеристика программы пакетного тура в соответствии с заданными критериями"]
[null,null,"И"," Представлена первичная информация от Заказчика (краткая заявка)",null,"ДА/НЕТ",null,6,{"v":0.1,"d":"0.10"}]
[null,null,"И","Представлена информация, полученная от Заказчика в результате переговоров (уточненная заявка)",null,"ДА/НЕТ",null,6,{"v":0.2,"d":"0.20"}]
[null,null,"И","Дана характеристика  страны(н) пребывания туристов",null,"Представлено географическое положение и природно-климатические особенности страны(н);\nПредставлены рекреационные ресурсы страны",null,6,{"v":0.2,"d":"0.20"}]
[null,null,"И","Выбор стран(ы) обоснован и сделан верно, в соответствии c запросом туристов",null,"ДА/НЕТ",null,6,{"v":0.1,"d":"0.10"}]
[null,null,"И","Дана характеристика  дестинации в стране(ах) пребывания туристов",null,"Представлены природно-климатические особенности дестинации;   \nПредставлены инфрастуктурные особенности дестинации; \nПредставлена информация о  основных достопримечательностях дестинации. ",null,6,{"v":0.3,"d":"0.30"}]
[null,null,"И"," Выбор дестинации обоснован и сделан верно, в соответствии c запросом туристов",null,"ДА/НЕТ",null,6,{"v":0.1,"d":"0.10"}]
[null,null,"И","Представлена общая информация о ТО , работающих по данному направлению( не менее двух)",null,"ДА/НЕТ",null,6,{"v":0.2,"d":"0.20"},{"$nulls":4},{"$f":"IF($H301=N$7,$I301,0)","v":0},0,0]
[null,null,"И","Произведено сравнение цен по  2 однородным туристским продуктам",null,"ДА/НЕТ",null,3,{"v":0.2,"d":"0.20"},{"$nulls":4},0,0,0]
[null,null,"И","Представлена актуальная информация (скриншот с сайта туроператора) о  наличии пакетного тура в системе бронирования  \"поиск/подбор/бронирование тура\" с указанием набора основных услуг и  базовой стоимости ( предложение № 1)",null,"ДА/НЕТ",null,6,{"v":0.2,"d":"0.20"},{"$nulls":4},0,0,0]
[null,null,"И"," Актуальная информация(скриншот с сайта ТО, Предложение № 1) о наличии пакетного тура в системе бронирования содержит:",null," Указание на  оптимальные даты путешествия; условия авиа перелета; (переезда) средства и условия размещения; условия питания;  ",null,3,{"v":0.3,"d":"0.30"},{"$nulls":4},0,0,0]
[null,null,"И","Представлена актуальная информация (скриншот с сайта туроператора) о  наличии пакетного тура в системе бронирования  \"поиск/подбор/бронирование тура\" с указанием набора основных услуг и  базовой стоимости ( предложение № 2)",null,"ДА/НЕТ",null,6,{"v":0.2,"d":"0.20"},{"$nulls":4},0,0,0]
[null,null,"И","Актуальная информация(скриншот с сайта ТО, Предложение № 2) о наличии пакетного тура в системе бронирования содержит: ",null,"  Указание на  оптимальные даты путешествия; условия авиа перелета; (переезда) средства и условия размещения; условия питания;  ",null,3,{"v":0.3,"d":"0.30"},{"$nulls":4},0,0,0]
[null,null,"И","Представленные участником туры (комплекс услуг) являются групповыми пакетными турами в соответствии с запросом туристов ",null,"ДА/НЕТ",null,8,{"v":0.2,"d":"0.20"},{"$nulls":4},0,0,0]
[null,null,"И"," Представлена подробная информация и обоснован выбор \"конечного\"  ТО  (стаж работы на рынке, логотип)",null," ДА/НЕТ",null,6,{"v":0.2,"d":"0.20"},{"$nulls":4},0,0,0]
[null,null,"И"," Представлена подробная информация и обоснован выбор \"конечного\"  ТО  ( основные направления)",null," ДА/НЕТ",null,6,{"v":0.2,"d":"0.20"},{"$nulls":4},0,0,0]
[null,null,"И","Представлена в виде скрина информация о РТО из ЕФРТ (финансовых гарантиях) \"конечного\" ТО ",null," ДА/НЕТ"," ",6,{"v":0.2,"d":"0.20"},{"$nulls":4},0,0,0]
[null,null,"И","Продемонстрировано умение осуществлять поиск и бронирование туристских продуктов с использованием GDS (в случае отсутствия необходимости использования, выставляется технический ноль)",null,"ДА/НЕТ",null,4,{"v":0.2,"d":"0.20"}]
[null,null,"И","Цель поездки с указанием вида туризма  сформулирована и представлена в соответствии с запросом Заказчика верно",null,"ДА/НЕТ"," ",6,{"v":0.1,"d":"0.10"}]
[null,null,"И","Информация о сроках поездки соответствует требованиям туриста и представлена верно",null,"ДА/НЕТ",null,6,{"v":0.2,"d":"0.20"}]
[null,null,"И","Информация о продолжительности поездки соответствует требованиям туриста и представлена верно",null,"ДА/НЕТ",null,6,{"v":0.2,"d":"0.20"}]
[null,null,"И","Предоставлена полная информация о составе туристов ",null,"ДА/НЕТ",null,6,{"v":0.2,"d":"0.20"}]
[null,null,"И","Предоставлена полная информация о возрасте туристов",null,"ДА/НЕТ",null,6,{"v":0.2,"d":"0.20"}]
[null,null,"И","Представлена верно информация о ценовой категории пакетного тура ",null,"ДА/НЕТ",null,6,{"v":0.1,"d":"0.10"}]
[null,null,"И","Представлен(ы) скриншот(ы) первого листа памятки стран посещения  туристу с сайта ТО сформировавшего выбранный турпакет ",null,"ДА/НЕТ",null,6,{"v":0.2,"d":"0.20"}]
[2,"Основной (обязательный) комплекс услуг по пакетному туру",{"$nulls":5},""]
[null,null,"И","Предоставлена  информация о  транспортных услугах",null,"Представлена информация о  компании, оказывающей основные транспортные  услуги по пакетному туру;\nИнформация о классе обслуживания в соответствии с запросом клиента представлена верно;\nПредставлена информация о дате и времени, номерах рейсов, аэропортах/вокзалах отправления \"туда-обратно\"",null,6,{"v":0.3,"d":"0.30"}]
[null,null,"И","Представлен скриншот с сайта ТО о транспортных услугах в системе бронирования  \"поиск/подбор/бронирование тура\"",null," ДА/НЕТ",null,6,{"v":0.2,"d":"0.20"}]
[null,null,"И","Представлена полная  информация о транспортном обслуживании программных мероприятий тура (переезды по маршруту)",null,"Определены транспортные услуги по маршруту, входящие в пакетный тур (обслуживание экскурсий и иных программных мероприятий);\nПредставлена информация о типе и классе транспортного средства, предусмотренного для переездов туристов внутри маршрута тура",null,6,{"v":0.2,"d":"0.20"}]
[null,null,"И","Предоставлена информация о трансфере",null,"Дана характеристика трансфера:  вид транспорта (автобус, микроавтобус , автомобиль и т.д.) \nи класс транспортного средства (бизнес, эконом и т.д.)",null,6,{"v":0.2,"d":"0.20"}]
[null,null,"И","Информация о виде трансфера (индивидуальный, групповой)  в соответствии с запросом туриста представлена верно",null," ДА/НЕТ"," ",6,{"v":0.2,"d":"0.20"}]
[null,null,"И","Предоставлена  информация о средстве (ах) размещения",null,"Представлена информация о  наименовании и категории средства размещения;\nПредставлена информация об объектах инфраструктуры средства размещения, в контексте пожеланий Заказчика или состава (возраста)туристов",null,6,{"v":0.2,"d":"0.20"}]
[null,null,"И","Представлена информация о месторасположении средства размещения в соответствии с запросом туриста (относительно турцентра, пляжа, основных достопримечательностей, аэропорта и т.п.)",null,"ДА/НЕТ",null,6,{"v":0.1,"d":"0.10"}]
[null,null,"И","Обснован выбор средств  размещения (отзывы/рейтинги)",null," ДА/НЕТ"," ",6,{"v":0.1,"d":"0.10"}]
[null,null,"И","Представлена полная информация о категории номера(ов) в соответствии с общепринятой терминологией, в которых будут размещаться туристы",null," ДА/НЕТ",null,6,{"v":0.1,"d":"0.10"}]
[null,null,"И","Представлена информация о типе номера и типе размещения туристов в номере (номерах)",null," ДА/НЕТ",null,6,{"v":0.1,"d":"0.10"}]
[null,null,"И","Учтены дополнительные особенности запроса туриста об условиях размещения ( в случае отстутствия ставится технический минимум) ",null,"ДА/НЕТ",null,6,{"v":0.1,"d":"0.10"}]
[null,null,"И","Предоставлена информация о услугах по организации  питания",null,"Представлена информация о концепции услуг питания в средстве (ах) размещения; \nПредставлена информация о предпритиях ,на базе которых будет  осуществляться питание",null,6,{"v":0.2,"d":"0.20"}]
[null,null,"И","Информация о типе питания соответствует общепринятой терминологии и представлена верно",null,"ДА/НЕТ",null,6,{"v":0.1,"d":"0.10"}]
[null,null,"И","Учтены индивидуальные особенности при организации питания туристов (диетическое, детское, вегетерианское меню и.д.). В случае отсутствия запроса Туриста ставится технический ноль.",null,"ДА/НЕТ",null,6,{"v":0.1,"d":"0.10"}]
[null,null,"И","Представлена  информация по рекомендуемым экскурсиям ( в случае отсутствии  необходимости ставится технический ноль)",null,"Представлены основные характеристики экскурсии: тип (групповая, индивидуальная), вид (пешеходная, автобусная);\nстоимость "," ",6,{"v":0.2,"d":"0.20"}]
[null,null,"И","В презентации присутствует краткое содержание экскурсий",null," ДА/НЕТ",null,6,{"v":0.1,"d":"0.10"}]
[null,null,"И","При выборе рекомендованных экскурсий учтены состав, возраст и индивидуальные пожелания Заказчика ( в случае отсутствия  необходимости ставится технической ноль)",null,"ДА/НЕТ",null,6,{"v":0.2,"d":"0.20"}]
[null,null,"И","Представлена информация по эскурсионной программе пакетного тура( в случае отсутствия  необходимости ставится технической ноль)",null,"дана информация по дням; \nдана информация по экскурсиям в программе тура; \nприсутствуют объекты посещения и показа в соответствии с запросом туриста",null,6,{"v":0.2,"d":"0.20"}]
[null,null,"И","Предложены не менее двух вариантов организации досуга туристов в местах пребывания (внепрограммные мероприятия)",null," ДА/НЕТ",null,6,{"v":0.1,"d":"0.10"}]
[null,null,"И","Информация по предложенным аттракциям учитывает индивидуальные пожелания туриста",null," ДА/НЕТ",null,6,{"v":0.1,"d":"0.10"}]
[null,null,"И","Учтены дополнительные пожелания туристов по организации путешествия",null," ДА/НЕТ",null,1,{"v":0.2,"d":"0.20"}]
[null,null,"И","Предоставлена полная  информация о страховании","","Представлен скрин информации с сайта ТО о страховой компании, предоставляющей услуги страхования;\nПредставлена информация о программе страхования, входящей в пакетный тур и размер страховой суммы "," ",6,{"v":0.2,"d":"0.20"},{"$nulls":4},{"$f":"IF($H341=N$7,$I341,0)","v":0},0,0]
[null,null,"И","Учтены пожелания туриста по дополнительному страхованию","","ДА/НЕТ",null,6,{"v":0.2,"d":"0.20"},{"$nulls":4},0,0,0]
[3,"Туристские формальности",{"$nulls":5},""]
[null,null,"И","Предоставлена полная  информация о визовом обслуживании. В случае отсутствия ВО ставится технический ноль ","","При необходимости оформления визы перечислены основные условия её оформления (стоимость, необходимые документы, сроки оформления, порядок подачи документов ) "," ",6,{"v":0.2,"d":"0.20"}]
[null,null,"И","Представлена информация о необходимости или отсутствии необходимости оформления визы по указанному направлению","","ДА/НЕТ"," ",6,{"v":0.1,"d":"0.10"}]
[null,null,"И","Представлена информация об актуальных условиях въезда и пребывания в стране  ","","ДА/НЕТ",null,6,{"v":0.1,"d":"0.10"}]
[null,null,"И","Продемонстрировано умение предоставить информацию с использованием открытых актуальных источников (не менее четырех)","","ДА/НЕТ",null,3,{"v":0.1,"d":"0.10"}]
[4,"Качество предоставления услуг по пакетному туру"]
[null,null,"С","Качество презентации рекомендованных  средств и условий размещения по пакетному туру",{"$nulls":3},2,{"v":1,"d":"1.00"},{"$nulls":4},{"$f":"IF($H349=N$7,$I349,0)","v":0},0,0]
[{"$nulls":4},0,"Средства размещения и условия размещения представлены не убедительно, отсутствует обоснование и  указания на их ключевые характеристики.",{"$nulls":7},0,0,0]
[{"$nulls":4},1,"Участник перечислил ключевые характеристики средств и условий размещения, но не продемонстрировал навыки обоснования сделанного выбора",{"$nulls":7},0,0,0]
[{"$nulls":4},2,"Участник обосновывал  выбор рекомендованных ТО средств и условий размещения туристов в пакетном туре, указал на их специфические характеристики и особенности.",{"$nulls":7},0,0,0]
[{"$nulls":4},3,"Участник  обоснованно, учитывая все пожелания и предпочтения  туристов, рекомендовал средства размещения, дал развернутую характеристику условиям размещения, подкреплял и аргументировал свой выбор отзывами туристов, ранее отдыхавших в данном месте, своим личным отношением и опытом.",null,null," ",{"$nulls":4}," "," "," "]
[null,null,"С","Качество предъявления участником пакетного тура","","",null,2,{"v":1.2,"d":"1.20"},{"$nulls":4},0,0,0]
[{"$nulls":3},"",0,"Программа обслуживания по пакетному туру не представлена",{"$nulls":7},0,0,0]
[{"$nulls":3},"",1,"Программа обслуживания по пакетному туру   не достаточно убедительна по содержанию, выполнена на невысоком содержательном и техническом уровне и не в полном объеме соответствует заказу клиента",{"$nulls":7},0,0,0]
[{"$nulls":3},"",2,"Программа обслуживания по пакетному туру убедительна по содержанию, выполнена на высоком техническом уровне, но не в полном объеме соответствует заказу клиента",{"$nulls":7},0,0,0]
[{"$nulls":3},"",3,"Программа обслуживания по   пакетному туру убедительна по содержанию, оптимальна по форме подачи, полностью соответствует заказу клиента",{"$nulls":7},0,0,0]
[5,"Составление калькуляции стоимости туристского продукта",{"$nulls":5},""]
[null,null,"И","Базовая стоимость туристского продукта, соответствуюет данным из системы бронирования туроператора и представлена верно","","ДА/НЕТ",null,4,{"v":0.2,"d":"0.20"}]
[null,null,"И","Расчет  стоимости дополнительных услуг по пакетному  туру, приобретаемых клиентом, представлен верно","","ДА/НЕТ",null,4,{"v":0.2,"d":"0.20"}]
[null,null,"И","Расчет  обязательных доплат по пакетному туру, представлен верно","","ДА/НЕТ",null,4,{"v":0.2,"d":"0.20"}]
[null,null,"И","Расчет итоговой стоимости пакетного   тура в  иностранной валюте и в рублевом эквиваленте по текущему курсу туроператора, сформировавшего пакетный тур, представлена верно","","ДА/НЕТ",null,4,{"v":0.2,"d":"0.20"}]
[null,null,"И","Представлен скриншот курса валют с сайта ТО в рублях/валюте",null,"ДА/НЕТ",null,4,{"v":0.1,"d":"0.10"}]
[null,null,"И","Итоговая стоимость пакетного тура для клиента, представлена верно","","ДА/НЕТ",null,4,{"v":0.2,"d":"0.20"}]
[null,null,"И","Расчет прибыли агентства по пакетному туру в рублях представлен верно","","ДА/НЕТ",null,4,{"v":0.1,"d":"0.10"}]
[6,"Заполнение Договора между Турагентом и Туристом",{"$nulls":5},""]
[null,null,"И","Заявка на бронирование. Раздел 1. Сведения о туристе: указаны ФИО туриста в латинской транскрипции","","ДА/НЕТ",null,4,{"v":0.1,"d":"0.10"}]
[null,null,"И","Заявка на бронирование. Раздел 1. Сведения о туристе: указаны ФИО туриста в на русском языке","","ДА/НЕТ",null,4,{"v":0.1,"d":"0.10"}]
[null,null,"И","Заявка на бронирование. Раздел 1. Сведения о туристе: указан пол, указана дата рождения, численность","","ДА/НЕТ",null,4,{"v":0.1,"d":"0.10"}]
[null,null,"И","Заявка на бронирование. Раздел 1. Сведения о туристе: указаны данные документа, удостоверяющего личность","","ДА/НЕТ",null,4,{"v":0.1,"d":"0.10"}]
[null,null,"И","Заявка на бронирование. Раздел 2.1. Указана страна, указан город/курорт ","","ДА/НЕТ",null,4,{"v":0.1,"d":"0.10"}]
[null,null,"И","Заявка на бронирование. Раздел 2.1. Указаны даты пребывания, указаны даты начала/окончания тура","","ДА/НЕТ",null,4,{"v":0.1,"d":"0.10"}]
[null,null,"И","Заявка на бронирование. Раздел 2.1. Указано количество дней/ночей","","ДА/НЕТ",null,4,{"v":0.1,"d":"0.10"}]
[null,null,"И","Заявка на бронирование. Раздел 2.2. Указано наименование средства размещения, указано место нахождения средства размещения","","ДА/НЕТ",null,4,{"v":0.1,"d":"0.10"}]
[null,null,"И","Заявка на бронирование. Раздел 2.2. Указана категория средства размещения","","ДА/НЕТ",null,4,{"v":0.1,"d":"0.10"}]
[null,null,"И","Заявка на бронирование. Раздел 2.2. указаны даты заезда и выезда","","ДА/НЕТ",null,4,{"v":0.1,"d":"0.10"}]
[null,null,"И","Заявка на бронирование. Раздел 2.3. Указана категория номера","","ДА/НЕТ",null,4,{"v":0.1,"d":"0.10"}]
[null,null,"И","Заявка на бронирование. Раздел 2.3. Указан тип размещения в номере, указано количество человек в номере","","ДА/НЕТ",null,4,{"v":0.1,"d":"0.10"}]
[null,null,"И","Заявка на бронирование. Раздел 2.3. Указана категория питания","","ДА/НЕТ",null,4,{"v":0.1,"d":"0.10"}]
[null,null,"И","Заявка на бронирование.  Раздел 2.4. указан маршрут","","ДА/НЕТ",null,4,{"v":0.1,"d":"0.10"}]
[null,null,"И","Заявка на бронирование.  Раздел 2.4. Указан класс обслуживание, указан номер рейса, указана дата/время","","ДА/НЕТ",null,4,{"v":0.1,"d":"0.10"}]
[null,null,"И","Заявка на бронирование.  Раздел 2.4. Заполнена графа Примечание","","ДА/НЕТ",null,4,{"v":0.1,"d":"0.10"}]
[null,null,"И","Раздел 2.5. Указаны ФИО Туристов","","ДА/НЕТ",null,4,{"v":0.1,"d":"0.10"}]
[null,null,"И","Раздел 2.5. Указан маршрут перевозки","","ДА/НЕТ",null,4,{"v":0.1,"d":"0.10"}]
[null,null,"И","Раздел 2.5. Указан тип трансфера, указана категория транспорта, указан вид транспорта","","ДА/НЕТ",null,4,{"v":0.1,"d":"0.10"}]
[null,null,"И","Заявка на бронирование.  Раздел 2.6. Экскурсионная программа. (ЗАПОЛНЕН / НЕ ЗАПОЛНЕН) (заполняется только при приобретении экскурсионного тура или в случае добавления в пакетный тур экскурсий в момент бронирования Агентом)","","ДА/НЕТ",null,4,{"v":0.1,"d":"0.10"}]
[null,null,"И","Заявка на бронирование. Раздел 2.7. Иные дополнительные услуги. (ЗАПОЛНЕН / НЕ ЗАПОЛНЕН) (В соответствии с предложенным туром во время презентации)","","ДА/НЕТ",null,4,{"v":0.1,"d":"0.10"}]
[null,null,"И","Заявка на бронирование. Раздел 3. Указана общая цена, сумма цифрами и прописью","","ДА/НЕТ",null,4,{"v":0.1,"d":"0.10"}]
[null,null,"И","Заявка на бронирование. Раздел 3. Указана стоимость туристского продукта в у.е.","","ДА/НЕТ",null,4,{"v":0.1,"d":"0.10"}]
[null,null,"И","Заявка на бронирование. Раздел 3. Указан курс туроператора на день заключения договора","","ДА/НЕТ",null,4,{"v":0.1,"d":"0.10"}]
[null,null,"И","Заявка на бронирование. Раздел 4. Сведения о договоре добровольного страхования в пользу Туриста (ЗАПОЛНЕН ВЕРНО)","","ДА/НЕТ",null,4,{"v":0.1,"d":"0.10"}]
[null,null,"И","Заполнение Приложения к заявке. Перечень дополнительной информации, доведенной до заказчика (ЗАПОЛНЕН / НЕ ЗАПОЛНЕН последний пункт)","","ДА/НЕТ",null,4,{"v":0.1,"d":"0.10"}]
[null,null,"И","Приложение 2. Раздел 1. Сведения о Турагенте: указано полное наименование/фамилия, имя, отчество (при наличии) индивидуального предпринимателя, указано сокращенное наименование","","ДА/НЕТ",null,4,{"v":0.1,"d":"0.10"}]
[null,null,"И","Приложение 2. Раздел 1. Сведения о Турагенте: указан адрес (место нахождения), указан почтовый адрес","","ДА/НЕТ",null,4,{"v":0.1,"d":"0.10"}]
[null,null,"И","Приложение 2. Раздел 1. Сведения о Турагенте: указан телефон/факс, указан адрес электронной почты/сайт, указан режим работы","","ДА/НЕТ",null,4,{"v":0.1,"d":"0.10"}]
[null,null,"И","Приложение 2. Раздел 2. Информация о Туроператоре: указано полное наименование, указано сокращенное наименование","",null,null,4,{"v":0.1,"d":"0.10"}]
[null,null,"И","Приложение 2. Раздел 2. Информация о Туроператоре: указан реестровый номер","",null,null,4,{"v":0.1,"d":"0.10"}]
[null,null,"И","Приложение 2. Раздел 2. Информация о Туроператоре: указан адрес (место нахождения), указан почтовый адрес, указан телефон/факс, указан адрес электронной почты/Сайт, указан режим работы","",null,null,4,{"v":0.1,"d":"0.10"}]
[null,null,"И","Приложение 2. Раздел 3. Указано наименование организации, предоставившей финансовое обеспечение туроператора","",null,null,4,{"v":0.1,"d":"0.10"}]
[null,null,"И","Приложение 2. Раздел 3. Указан вид финансового обеспечения ответственности,\nуказан номер, дата и срок действия договора страхования ответственности туроператора и (или) договора о предоставлении банковской гарантии,\nуказан размер финансового обеспечения ответственности туроператора (каждой из организаций, предоставившей финансовое обеспечение ответственности)","",null,null,4,{"v":0.1,"d":"0.10"}]
[null,null,"И","Приложение 2. Раздел 3. Указан адрес/почтовый адрес,\nуказан сайт/адрес электронной почты","",null,null,4,{"v":0.1,"d":"0.10"}]
[null,null,"И","Приложение 2. Раздел 4. Указан адрес (местонахождение) организации,\nуказан адрес электронной почты/сайт","",null,null,4,{"v":0.1,"d":"0.10"}]
[null,null,"И","Приложение 2. Раздел 4. Указан телефон \"Горячая линия\"",{"$nulls":3},4,{"v":0.1,"d":"0.10"}]
[7,"Выявление потребностей клиента по подбору пакетного тура"," ",{"$nulls":10},{"$f":"IF($H405=N$7,$I405,0)","v":0},0,0]
[null,null,"И","Выявлены потребности туристов в выборе страны  пребывания",null,"ДА/НЕТ",null,4,{"v":0.1,"d":"0.10"},{"$nulls":4},0,0,0]
[null,null,"И","Выявлены потребности туристов в выборе курорта пребывания",null,"ДА/НЕТ",null,4,{"v":0.1,"d":"0.10"},{"$nulls":4},0,0,0]
[null,null,"И","Выявлены потребности туристов по датам и продолжительности путешествия ",null,"ДА/НЕТ",null,4,{"v":0.1,"d":"0.10"},{"$nulls":4},0,0,0]
[null,null,"И","Выявлены потребности туристов по организации транспортного обслуживания (прямой/стыковочный или с пересадкой, способ перевозки, класс обслуживания, наличие багажа) ",null,"ДА/НЕТ",null,4,{"v":0.1,"d":"0.10"},{"$nulls":4},0,0,0]
[null,null,"И","Выявлен полный состав и возраст туристов (в зависимости от специфики заказа)",null,"ДА/НЕТ",null,4,{"v":0.1,"d":"0.10"},{"$nulls":4},0,0,0]
[null,null,"И","Выявлены потребности туристов по средствам размещению (категория средства размещения, особенности инфраструктуры, расположение) ",null,"ДА/НЕТ",null,4,{"v":0.1,"d":"0.10"},{"$nulls":4},0,0,0]
[null,null,"И","Выявлены потребности туристов по условиям размещению ( тип номера, отдельные пожелания) ",null,"ДА/НЕТ",null,4,{"v":0.1,"d":"0.10"},{"$nulls":4},0,0,0]
[null,null,"И","Выявлены потребности туристов по  организации питания туристов ( тип и система питания) ",null,"ДА/НЕТ",null,4,{"v":0.1,"d":"0.10"},{"$nulls":4},0,0,0]
[null,null,"И","Выявлены дополнительные потребности туристов при организации путешествия,которые должны быть включены в стоимость пакетного тура  (экскурсии/событийные мероприятия)",null,"ДА/НЕТ",null,4,{"v":0.1,"d":"0.10"},{"$nulls":4},0,0,0]
[null,null,"И","Выявлены дополнительные потребности туристов при организации путешествия, без включения в стоимость пакетного тура (экскурсии/событийные мероприятия/атракции)",null,"ДА/НЕТ",null,4,{"v":0.1,"d":"0.10"},{"$nulls":4},0,0,0]
[null,null,"И","Выявлены потребности туристов связанные с туристскими формальностями (виза, паспорта) ",null,"ДА/НЕТ",null,4,{"v":0.1,"d":"0.10"},{"$nulls":4},0,0,0]
[null,null,"И","Выявлены потребности туристов связанные с дополнительными услугами ( страхование, трансфер) ",null,"ДА/НЕТ",null,4,{"v":0.1,"d":"0.10"},{"$nulls":4},0,0,0]
[null,null,"И","Запрошен полный пакет документов для оформления договора о реализации турпродукта ",null,"ДА/НЕТ",null,4,{"v":0.1,"d":"0.10"},{"$nulls":4},0,0,0]
[null,null,"С","Соответствие нормам делового общения",null,"",null,1,{"v":0.7,"d":"0.70"},{"$nulls":4},0,0,0]
[{"$nulls":3},"",0,"Контакт не установлен.",{"$nulls":7},0,0,0]
[{"$nulls":3},"",1,"Не соблюдены базовые правила делового общения (участник не поздоровался перед началом переговоров, не уточнил, как обращаться к туристу, фамильярен, зажат в общении, перебивает туриста в процессе общения, речь в основном монологичная. Тон невежлив. Превышен лимит времени )",{"$nulls":7},0,0,0]
[{"$nulls":3},"",2,"В вопросах присутствует обращение к клиенту. Участник умеет слушать и слышать клиента. Отсутствует зажатость в разговоре. Установлен зрительный контакт. Чувствуется настрой на диалог с туристом. Лимит времени не превышен.",{"$nulls":7},0,0,0]
[{"$nulls":3},"",3,"В общении с клиентом установлен полный контакт. Высшая степень эмпатии, со стороны участников проявлено полное  понимание и внимание к потребностям другой стороны переговоров.",{"$nulls":7},0,0,0]
[null,null,"С","Качество постановки вопросов клиенту по заявке.","","",null,1,{"v":0.5,"d":"0.50"},{"$nulls":4},0,0,0]
[{"$nulls":3},"",0,"Вопросы отсутствуют.",{"$nulls":7},0,0,0]
[{"$nulls":3},"",1,"Непоследовательность в вопросах, вопросы дублируют информацию по заявке, неконкретные короткие вопросы.",{"$nulls":7},0,0,0]
[{"$nulls":3},"",2,"Отсутствует логика в постановке вопросов, уточнены отсутствующие детали в заявке, однако, произошло выяснение потребностей клиента в целом.",{"$nulls":7},0,0,0]
[{"$nulls":3},"",3,"Профессиональная грамотность и корректность в постановке вопросов, акцентированность вопросов на требованиях и пожеланиях клиента, уточнение всех отсутствующих деталей в заявке",{"$nulls":7},0,0,0]
[8,"Использование алгоритма работы с возражениями туриста",{"$nulls":5},""]
[null,null,"И","Участник использовал технику принятия возражения: выражено понимание (согласие) важности и значимости для клиента, заявленного возражения","","ДА/НЕТ",null,6,{"v":0.2,"d":"0.20"}]
[null,null,"И","Участник использовал технику принятия возражения: сформулированы уточняющие вопросы по сделанному возражению","","ДА/НЕТ",null,6,{"v":0.2,"d":"0.20"}]
[null,null,"И","Участник верно определил истинность возражения ",""," ДА/НЕТ",null,6,{"v":0.2,"d":"0.20"}]
[null,null,"И","Участник привел убедительные доводы в пользу ранее сделанного предложения",""," ДА/НЕТ",null,6,{"v":0.2,"d":"0.20"}]
[null,null,"И","Участник предложил альтернативное решение выдвинутому туристом возражению",""," ДА/НЕТ",null,6,{"v":0.2,"d":"0.20"}]
[null,null,"И","Участник продемонстрировал многовариантность решений при обработке возражений клиента",""," ДА/НЕТ",null,6,{"v":0.2,"d":"0.20"}]
[null,null,"И","Участник, в  подкреплении своих доводов и аргументов, ссылался на  онлайн системы сайта туроператора, сформировавшего предлагаемый турпродукт",""," ДА/НЕТ",null,6,{"v":0.2,"d":"0.20"}]
[null,null,"И","Участник, в  подкреплении своих доводов и аргументов, ссылался на сайты других туроператоров",""," ДА/НЕТ",null,6,{"v":0.2,"d":"0.20"}]
[null,null,"И","Участник, в  подкреплении своих доводов и аргументов, ссылался  сайты туристских агрегаторов",""," ДА/НЕТ",null,6,{"v":0.2,"d":"0.20"}]
[null,null,"И","Участник, в  подкреплении своих доводов и аргументов, ссылался на сайты с предложениями авиакомпаний, отелей, туристских порталов и т.п",""," ДА/НЕТ",null,6,{"v":0.2,"d":"0.20"}]
[null,null,"И","Участник, в процессе обработки возражений клиента, подкрепляли свои доводы с привлечением  и демонстрацией дополнительной информации: Присутствовала демонстарция фотографий (отеля, курорта и т.д.)",""," ДА/НЕТ",null,6,{"v":0.2,"d":"0.20"}]
[null,null,"И","Участник, в процессе обработки возражений клиента, подкреплял свои доводы с привлечением  и демонстрацией дополнительной информации: Использовались комментарии и отзывы туристов",""," ДА/НЕТ",null,6,{"v":0.2,"d":"0.20"}]
[null,null,"И","Участник, в процессе обработки возражений клиента, подкреплял свои доводы с привлечением  и демонстрацией дополнительной информации: Пристутствовала демонстрация рейтингов туроператоров и конкректных  услуг",""," ДА/НЕТ",null,6,{"v":0.2,"d":"0.20"}]
[null,null,"И","Участник убедился, что возражение снято","","ДА/НЕТ",null,2,{"v":0.3,"d":"0.30"}]
[null,null,"И","Участник предпринял шаги для подведения туриста к заключению Договора о реализации тура","","ДА/НЕТ",null,2,{"v":0.3,"d":"0.30"}]
[null,null,"С","Продемонстрированы  навыки работы с возражениями","","",null,1,{"v":0.5,"d":"0.50"}]
[null,null," ","",0,"Участники не использовали алгоритм работы с возражениями, или попытки его реализации были неубедительны."]
[{"$nulls":3},"",1,"Участники продемонстрировали не все ключевые этапы работы с возражениями (принятие, проверка истинности, предложение по решению  возражения). В процессе работы с туристом были не уверены, малоубедительны, испытывали затруднение в формулировке вопросов и аргументов"]
[{"$nulls":3},"",2,"Участники продемонстрировали все ключевые этапы работы с возражениями (принятие, проверка истинности, предложение по решению возражения). Продемонстрировали уверенное владение техниками принятия возражения, проверки возражения. Убедительно представили решение по снятию возражения"]
[{"$nulls":3},"",3,"Участники продемонстрировали все ключевые этапы работы с возражениями на уровне практикующего бизнес-тренера (коучера), блестящее владение техниками принятия возражения, проверки возражения. Убедительно представили решение по преодолению возражения"]
[null,null,"С","Продемонстрированы  навыки аргументации предложенного решения выдвинутому возражению","","",null,1,{"v":0.5,"d":"0.50"}]
[{"$nulls":3},"",0,"Участники не привели аргументированных доводов в пользу ранее сделанного предложения либо не предложили альтернативное решение. Доводы и аргументы были не убедительны и безосновательны."]
[{"$nulls":3},"",1,"Участники   привели аргументированные доводы в пользу ранее сделанного предложения либо предложили альтернативное решение выдвинутому возражению, однако в процессе переговоров испытывали неуверенность, зажатость, демонстрируя слабые навыки убеждения"]
[{"$nulls":3},"",2,"Участники предложили  альтернативное решение выдвинутому возражению либо привели убедительно аргументированные доводы в пользу ранее сделанного предложения. В процессе беседы вели себя уверенно, постоянно подкрепляя свои решения (предложения) аргументами. Продемонстрировали высокую степень доказательности и убеждения."]
[{"$nulls":3},"",3,"Участники продемонстрировали блестящую аргументацию альтернативного решения выдвинутому возражению, либо привели убедительно аргументированные доводы в пользу ранее сделанного предложения. Высокая убедительность речи, свободное выражение выдвинутых аргументов и доводов"]
[9,"Использование навыков делового общения в работе с возражениями туристов",null,null," "," ",null,"",""]
[null,null,"С","Соответствие нормам делового общения","","",null,1,{"v":0.5,"d":"0.50"}]
[{"$nulls":3},"",0,"Контакт не установлен, участники безынициативно ведут диалог, отвечая на вопросы или реплики туриста, испытывают серьезные затруднения в аргументации собственной позиции.Привышен лимит времени."]
[{"$nulls":3},"",1,"Не соблюдены базовые правила делового общения (участник не поздоровался перед началом переговоров, не проявил инициативу в продолжении общения с туристом, не  обращаться к туристу по имени, фамильярен  или зажат в общении, перебивает  туриста в процессе общения, речь в основном монологичная. Превышен лимит времени"]
[{"$nulls":3},"",2,"Участники проявляют инициативу в диалоге с туристом, в вопросах присутствует обращение к клиенту. Участник умеет слушать и слышать клиента. Отсутствует зажатость в разговоре. Установлен зрительный контакт. Чувствуется настрой на диалог с туристом. Лимит времени не превышен."]
[{"$nulls":3},"",3,"Полный контакт установлен. Высшая степень эмпатии, со стороны участников проявлено полное  понимание и внимание к потребностям другой стороны переговоров."]
[null,null,"С","Стрессоустойчивость и конфликтоустойчивость в процессе презентации и работы с возражениями",{"$nulls":3},7,{"v":0.3,"d":"0.30"}," "]
[null," ",null,null,0," участник эмоционально реагирует на поступающие возражения заказчика, демонстрирует раздражительность, неприветлив"]
[null," ",null,null,1," участник машинально выполняет работу по преодолению возражения, не поддерживает беседу. При общении иногда замыкается в себе"]
[null," ",null,null,2,"участник приветлив, поддерживает контакт с заказчиком. При общении изредка замыкается в себе (теряет контакт с клиентом)."]
[null," ",null,null,3,"участник приветлив, поддерживает контакт с заказчиком и удерживает контакт с ним до конца выполнения задания."]
[10,"Качество презентации",{"$nulls":5},""]
[null,null,"И","Презентация не превысила выделенный лимит времени (тайм-менеджмент)","","ДА/НЕТ",null,8,{"v":0.2,"d":"0.20"}," "]
[null,null,"И","Время, выделенное на презентацию программы тура, использовано более чем на 95%","","ДА/НЕТ",null,8,{"v":0.2,"d":"0.20"}," "]
[null,null,"С","Оформление презентации",{"$nulls":3},8,{"v":0.3,"d":"0.30"}," "]
[{"$nulls":4},0,"Отсутствует единый стиль оформления, структура и логика. Присутствуют грамматические ошибки на слайдах, , текст читается с трудом (мелкий шрифт, разные и сливающиеся шрифты, неприемлемая контрастность фона и шрифта)."]
[{"$nulls":4},1,"Частично соблюден единый стиль оформления презентации. Частично присутстсвует структура и логика построения презентации. Информация написана орфографически грамотно, текст хорошо читается (разборчивость и читаемость букв, слов, фраз), используется единый тип шрифта. "]
[{"$nulls":4},2,"Единый стиль оформления. Присутстсвует структура и логика построения презентации. Информация в презентации написана орфографически грамотно, текст хорошо читается (разборчивость и читаемость букв, слов, фраз), используется единый тип шрифта."]
[{"$nulls":4},3,"Профессиональная презентация, имеет четкую структуру и логику построения презентации. Информация написана орфографически грамотно, единый стиль оформления, текст хорошо читается (разборчивость и читаемость букв, слов, фраз), используется единый тип шрифта. Присутствуют дополнительные графические и визуальные элементы оформления, соответствующие тематике задания "]
[null,null,"С","Культура речи","","",null,1,{"v":0.9,"d":"0.90"}]
[{"$nulls":3},"",0,"Отсутствие культуры речи .В презентации не использована специальная терминология, не продемонстрировано владение понятийным аппаратом"]
[{"$nulls":3},"",1,"В выступлении частично присутствуют речевые и стилистические ошибки.  В презентации частично использована специальная терминология и слабо продемонстрировано владение понятийным аппаратом"]
[{"$nulls":3},"",2,"В выступлении  соблюдены базовые этико-речевые нормы. Грамотно и уместно используются специальные термины, понятия, географические названия."]
[{"$nulls":3},"",3,"Высокий уровень культуры речи Полностью соблюдаются этико-речевые нормы.Высокая степень владения понятийным аппаратом и специальной терминологией."]
[null,null,"С","Смысловое единство и логика выступления","","",null,1,{"v":0.5,"d":"0.50"}]
[{"$nulls":3},"",0,"Отсутствие   смыслового единства и логики выступления."]
[{"$nulls":3},"",1,"В выступлении частично прослеживается взаимосвязь смыслового единства и логики."]
[{"$nulls":3},"",2,"Выступление в целом логично, но не в полном объеме структурировано по смыслу."]
[{"$nulls":3},"",3,"Выступление имеет единый стиль, смысл, логику."]
[11,"Охрана труда"," "," ","","",null," "," "]
[null,null,"И","В ходе выполнения модуля КЗ участником были соблюдены базовые требования охраны труда и техники безопасности   "," "," ДА/НЕТ",null,7,{"v":0.5,"d":"0.50"}]
["Г","Разработка индивидуального тура",{"$nulls":6},{"$f":"SUM(I487:I681)","v":{"v":24.000000000000025,"d":"24.00"}}]
[1,"Общая характеристика  программы тура на заказ в соответствии с запросом ",null,null," "," ",null,""," "]
[null,null,"И"," Представлена первичная информация о заказе",""," ДА/НЕТ",null,3,{"v":0.1,"d":"0.10"}]
[null,null,"И","Представлена полная информация, полученная в результате переговоров","","ДА/НЕТ",null,3,{"v":0.2,"d":"0.20"}]
[null,null,"И","Дана характеристика территории путешествия. Представлено административное и географическое расположение территории путешествия(карта, граница, часовой пояс)","","ДА/НЕТ ",null,3,{"v":0.2,"d":"0.20"}]
[null,null,"И","Дана характеристика территории путешествия.Представлены природно-климатические характеристики  территории путешествия ","","ДА/НЕТ",null,3,{"v":0.2,"d":"0.20"}]
[null,null,"И","Представлены основные туристские бренды региона ",null,"ДА/НЕТ",null,3,{"v":0.2,"d":"0.20"},{"$nulls":4},{"$f":"IF($H492=N$7,$I492,0)","v":0},0,0]
[null,null,"И","Представлена  информация о транспортной доступности  региона",null," Перечислены все способы добраться в регион;\nУказан полный перечень ключевых транспортных узлов ",null,3,{"v":0.2,"d":"0.20"},{"$nulls":4},{"$f":"IF($H493=N$7,$I493,0)","v":0},0,0]
[null,null,"И"," Присутствует указание на \"нитку\" маршрута, основные локации по маршруту","","ДА/НЕТ",null,3,{"v":0.1,"d":"0.10"}]
[null,null,"И","Представлено название индивидуального тура","","ДА\\НЕТ",null,5,{"v":0.1,"d":"0.10"},{"$nulls":4},{"$f":"IF($H495=N$7,$I495,0)","v":0},0,0]
[null,null,"И","Представлена полная информация о составе  туристов","","ДА/НЕТ",null,5,{"v":0.1,"d":"0.10"}]
[null,null,"И","Представлена полная информация о возрасте туристов","","ДА/НЕТ",null,5,{"v":0.1,"d":"0.10"}]
[null,null,"И"," Сроки поездки указаны и соответствуют требованиям Заказчика",""," ДА/НЕТ",null,5,{"v":0.1,"d":"0.10"}]
[null,null,"И","Продолжительность поездки определена и  соответствует требованиям Заказчика","","ДА/НЕТ",null,5,{"v":0.1,"d":"0.10"}]
[null,null,"И"," Сезонность поездки обоснована и соответствует требованиям Заказчика","","ДА\\НЕТ"," ",5,{"v":0.1,"d":"0.10"},{"$nulls":4},{"$f":"IF($H500=N$7,$I500,0)","v":0},0,0]
[null,null,"И","Наличие общей карты-схемы маршрута","","ДА\\НЕТ"," ",5,{"v":0.1,"d":"0.10"}]
[null,null,"И","Присутствует указание на протяженность маршрута в общей карте-схеме","","ДА\\НЕТ",null,5,{"v":0.1,"d":"0.10"}]
[null,null,"И","Присутствует указание на продолжительность в общей-карте схеме",null,"ДА/НЕТ",null,5,{"v":0.1,"d":"0.10"}]
[null,null,"И","Наличие карт-схем ежедневных передвижений по программе тура","","ДА\\НЕТ",null,5,{"v":0.2,"d":"0.20"}]
[null,null,"И","Наличие программы тура с указанием затрат времени","","ДА\\НЕТ",null,4,{"v":0.1,"d":"0.10"}]
[2,"Выбор и обоснования транспортных услуг ",null,null," "," ",null,""]
[" "," ","И","Транспортная схема соответствует заданию, цели и задачам индивидуального тура","","Протяженность переездов по маршруту соответствует заданию, цели и задачам турпрдукта;\nПродолжительность переездов по маршруту соответствует  заданию, цели и задачам нового турпродукта;\n Учтена загруженность автодорог при планировании тайминга маршрута тура;\nУчтено состояние автодорог при планировании тайминга маршрута тура"," ",5,{"v":0.4,"d":"0.40"}]
[null,null,"И","Оптимальный выбор транспортных средств, использующихся на маршруте","","Учтено соотношение количества туристов в группе и количество посадочных мест;\nУказана цена перевозки;\nУказаны составляющие комфортабельности ТС;\nОпределена лицензированная компания перевозчик",null,5,{"v":0.4,"d":"0.40"}]
[null,null," С","Оптимальность  выбора транспортных услуг, включенных в маршрут индивидуального тура","","",null,8,{"v":0.4,"d":"0.40"}]
[{"$nulls":3},"",0,"Выбранные транспортные услуги не соответствуют требованиям задания"]
[{"$nulls":3},"",1,"Выбор транспортных услуг, включенных в туристский продукт, учитывают явные (базовые) потребности потребителей турпродукта"]
[null,null," ","",2,"Выбор транспортных услуг, включенных в туристский продукт, в целом учитывают потребности потребителей турпродукта"]
[{"$nulls":3},"",3,"Выбор транспортных услуг, включенных в туристский продукт, учитывает все потребности потребителей  турпродукта и требования задания (кейса)"]
[3,"Выбор и обоснования услуг по размещению туристов",null,null," "," ",null,"",""]
[null,null,"И","Средства размещения на маршруте  соответствуют заданию и  цели и задачам  индивидуального тура","","Определена категория средств размещения;\nОбоснован выбор месторасположения средств размещения;\nПредставлена инфраструктура средств размещения;\nВозможности номерного фонда средств размещения позволяют разместить группу туристов определенную заданием",null,5,{"v":0.4,"d":"0.40"}]
[null,null,"И","Указаны и обоснованы  категории номеров, в которых будет производится размещение туристов по маршруту тура","","ДА/НЕТ",null,5,{"v":0.1,"d":"0.10"}]
[null,null,"И","Указан  и обоснован тип размещения туристов в номерах","","ДА/НЕТ",null,5,{"v":0.1,"d":"0.10"}]
[null,null,"С","Оптимальность выбора   услуг по размещению туристов","","",null,8,{"v":0.4,"d":"0.40"}]
[{"$nulls":3},"",0,"Выбранные услуги размещения не соответствуют требованиям задания"]
[{"$nulls":3},"",1,"Выбор услуг размещения, включенных в туристский продукт, учитывают явные (базовые) потребности потребителей турпродукта"]
[{"$nulls":3},"",2,"Выбор услуг размещения, включенных в туристский продукт, в целом учитывают потребности потребителей турпродукта"]
[" ",null," ","",3,"Выбор услуг размещения, включенных в туристский продукт, учитывает все потребности потребеителй  турпродукта и требования задания (кейса)"]
[4,"Выбор и обоснования услуг по организации питания туристов",null,null," "," ",null,"",""]
[null,null,"И","Предприятия питания на маршруте соответствуют заданию и  цели индивидуального тура ","","Обоснован выбор и отражены особенности режима питания туристов;\nПри выборе предприятий питание учтено и обосновано их месторасположение;\nПри выборе предприятий питания учтены и обоснованы сбособ(ы) обслуживания   "," ",5,{"v":0.3,"d":"0.30"}]
[null,null,"И","При выборе предприятий питания учтены особенности региональной (национальной) кухни.","","указана аутентичность предприятий питания;\nприсутствует информация о блюдах и особенностях кухни (региональная, национальная и т.п.) ",null,5,{"v":0.2,"d":"0.20"}]
[" ",null,"С","Оптимальность выбора   услуг по организации питания  туристов, включенных в индивидуальный тур","","",null,8,{"v":0.4,"d":"0.40"}]
[{"$nulls":3},"",0,"Выбранные услуги по организации питания не соответствуют требованиям задания"]
[{"$nulls":3},"",1,"Выбор услуг по организации питания, включенных в туристский продукт, учитывают явные (базовые) потребности потребителй  турпродукта"]
[{"$nulls":3},"",2,"Выбор услуг по организации питания, включенных в туристский продукт, в целом учитывают потребности потребителей турпродукта"]
[{"$nulls":3},"",3,"Выбор услуг по организации питания, включенных в туристский продукт, учитывает все потребности потребителей турпродукта и требования задания "]
[5,"Выбор и обоснование экскурсионных услуг"," "," ",{"$nulls":3},"",""]
[null,null,"И","Отбор экскурсионных объектов  показа и посещения соответствуют заданию  ",""," ДА/НЕТ"," ",5,{"v":0.2,"d":"0.20"}]
[null,null,"И","Соблюдена логика и последовательность посещения и осмотра объектов экскурсионной программы",null,"ДА/НЕТ",null,5,{"v":0.1,"d":"0.10"}]
[null,null,"И","Присутствует в программе тура указание на наличие в программе маршрута памятников культурно-исторического наследия (ЮНЕСКО, федерального, регионального уровня)","","ДА\\НЕТ",null,5,{"v":0.2,"d":"0.20"}]
[null,null,"И","Присутствует в програме тура указание на наличие  в программе маршрута аутентичных мест посещения, являющихся «визитной карточкой» региона","","ДА\\НЕТ",null,5,{"v":0.1,"d":"0.10"}]
[null,null,"И","Представленные в характеристике региона  туристские бренды используются в программе индивидуального тура",null,"ДА/НЕТ",null,5,{"v":0.1,"d":"0.10"},{"$nulls":4},{"$f":"IF($H536=N$7,$I536,0)","v":0},0,0]
[null,null,"С","Оптимальность выбора   услуг по экскурсионному обслуживанию туристов","","",null,8,{"v":0.4,"d":"0.40"}]
[null,null," ","",0,"Выбранные экскурсионные услуги не соответствуют требованиям задания"]
[{"$nulls":3},"",1,"Выбор экскурсионных услуг включенных в туристский продукт, учитывают явные (базовые) потребности потребителей  турпродукта"]
[{"$nulls":3},"",2,"Выбор экскурсионных услуг включенных в туристский продукт, в целом учитывают потребности потребителей  турпродукта"]
[{"$nulls":3},"",3,"Выбор экскурсионных услуг включенных в туристский продукт, учитывает все потребности потребителей турпродукта и требования задания  "]
[6,"Организация интерактивных программ и предложенные внепрограммные досуговые мероприятия (аттракции) в местах пребывания туристов",null,null," "," ",null,"",""]
[null,null,"И","Разнообразие представленных в программе тура интерактивных программ (не менее трех)","","ДА\\НЕТ",null,2,{"v":0.2,"d":"0.20"},{"$nulls":4},{"$f":"IF($H543=N$7,$I543,0)","v":0},0,0]
[null,null,"И","Соответствие содержания интерактивных программ  индивидуальным запросам туристов","","ДА\\НЕТ",null,2,{"v":0.1,"d":"0.10"},{"$nulls":4},0,0,0]
[null,null,"И"," Разнообразие представленных в программе тура внепрограммных досуговых мероприятий(аттракций) ( не менее двух)","","ДА\\НЕТ",null,2,{"v":0.2,"d":"0.20"},{"$nulls":4},0,0,0]
[null,null,"С","Выбор внепрограммных досуговых мероприятий (аттракций) в месте пребывания соответствуют заданию и  цели индивидуального тура ","","",null,2,{"v":0.3,"d":"0.30"}]
[{"$nulls":3},"",0,"В презентации отсутствует информация об аттракциях в месте пребывания"]
[" ",null," ","",1,"Предложенные аттракции не полностью соответствуют заданию и  цели нового турпродукта "]
[{"$nulls":3},"",2,"Представленные аттракции в полной мере соответствуют заданию и  цели нового турпродукта "]
[{"$nulls":3},"",3,"Выбор представленных аттракций обоснован и отражает специфические особенности задания и  цели нового турпродукта "]
[7,"Выбор и обоснование иных (дополнительных) услуг",null,null," "," ",null,"",""]
[null,null,"И","Наличие в программе турпродукта услуг по страхованию туристов","","Представлена верная информация о страховой компании;\nПредставлена информация о программе страхования ;\nПредставлена информация размере страховой суммы",null,5,{"v":0.3,"d":"0.30"}]
[null,null,"И"," Представлена информация о необходимых инстуктажах по ТБ и обязательная информация, доводимая до туриста ",""," ДА/НЕТ",null,5,{"v":0.2,"d":"0.20"}]
[null,null,"И","Наличие указаний на правовые нормы, конкретные  ГОСТы ","","ДА\\НЕТ",null,5,{"v":0.1,"d":"0.10"}]
[null,null,"И","Предоставлена полная  информация о визовом обслуживании. В случае отсутствия ВО ставится технический ноль ","","При необходимости оформления визы перечислены основные условия её оформления (стоимость, необходимые документы, сроки оформления, порядок подачи документов ) "," ",6,{"v":0.2,"d":"0.20"},{"$nulls":4},{"$f":"IF($H555=N$7,$I555,0)","v":0},0,0]
[null,null,"И","Представлена информация о необходимости или отсутствии необходимости оформления визы по указанному направлению. В случае отсутствия ВО ставится технический ноль","","ДА/НЕТ"," ",6,{"v":0.2,"d":"0.20"},{"$nulls":4},0,0,0]
[null,null,"И","Представлена информация об актуальных условиях въезда и пребывания в страну(регион) путешествия. В случае отсутствия особых условий  ставится технический ноль ","","ДА/НЕТ",null,6,{"v":0.2,"d":"0.20"},{"$nulls":4},0,0,0]
[8,"Качество и полнота программы индивидуального тура",{"$nulls":11},0,0,0]
[null,null,"С","Качество и полнота учета интересов и  предпочтений туристов при формировании программы индивидуального тура","",""," ",8,{"v":1,"d":"1.00"}," ",{"$nulls":3},0,0,0]
[{"$nulls":3},"",0,"Качество учета задания и интересов низкое. В программе тура не учтены специфические особенности туристов,указанные в задании ",{"$nulls":7},0,0,0]
[null,null," ","",1,"Качество учета задания и интересов среднее. В программе тура частично учтены специфические особенности туристов, указанные в задании ",{"$nulls":7},0,0,0]
[{"$nulls":3},"",2,"Качество учета задания и интересов  высокое. Программа тура в целом учитывает специфические особенности туристов, указанные в задании ",{"$nulls":7},0,0,0]
[{"$nulls":3},"",3,"Качество учета задания и интересов  высокое. В программе тура полностью учтены специфические особенности туристов, указанные в задании ",{"$nulls":7},0,0,0]
[" ",null," С"," Качество и полнота представления территории путешествия ","","",null,2,{"v":0.5,"d":"0.50"},{"$nulls":4},0,0,0]
[null,null," ","",0," Представлено не верное обоснование и представление территории",{"$nulls":7},0,0,0]
[null,null," ","",1," Низкая степень обоснования и представления территории путешествия",{"$nulls":7},0,0,0]
[{"$nulls":3},"",2,"Средняя степень обоснования. Представлена общая характеристика территории путешествия  без обоснования ее отдельных особенностей и уникальности. ",{"$nulls":7},0,0,0]
[{"$nulls":3},"",3,"Высокая степень обоснования. Представлена полная характеристика территории путешествия, присутствует указание на ее уникальность и самобытность.   ",{"$nulls":7},0,0,0]
[null,null,"С","Соответствие программы тура  индивидуальному заказу клиента с учетом всех имеющихся особенностей запроса заказчика","","",null,5,{"v":1.2,"d":"1.20"},{"$nulls":4},0,0,0]
[{"$nulls":3},"",0,"Программа тура на заказ не представлена",{"$nulls":7},0,0,0]
[{"$nulls":3},"",1,"Программа тура на заказ не достаточно убедительна по содержанию, выполнена на невысоком содержательном и техническом уровне и не в полном объеме учитывает все особенности запроса заказчика",{"$nulls":7},{"$f":"IF($H571=N$7,$I571,0)","v":0},0,0]
[null,null," ","",2,"Программа тура  на заказ  убедительна по содержанию, выполнена на высоком техническом уровне, но не в полном объеме учитывает все особенности запроса заказчика",{"$nulls":7},0,0,0]
[{"$nulls":3},"",3,"Программа тура на заказ убедительна по содержанию, оптимальна по форме подачи, полностью учитывает все особенности запроса заказчика",{"$nulls":7},0,0,0]
[null,null,"С","Креативность и оригинальность программы индивидуального тура","","",null,2,{"v":0.5,"d":"0.50"},{"$nulls":4},0,0,0]
[{"$nulls":3},"",0,"Программа тура на заказ не является уникальной и оригинальной  разработкой. Отсутствует  креативность в  подаче материала.",{"$nulls":7},0,0,0]
[{"$nulls":3},"",1,"Низкая степень обоснования. Программа тура на заказ содержит элементы новизны и уникальности. Креативность и оригинальность проявлены слабо",{"$nulls":7},0,0,0]
[" ",null," ","",2,"Программа тура на заказ в целом обоснована и соответствует заданию. Креативна, но недостаточно оригинальна по содержанию и форме подачи информации",{"$nulls":7},0,0,0]
[{"$nulls":3},"",3,"Программа тура на заказ  является оригинальной разработкой. Высокий уровень креативности в подаче материала.",{"$nulls":7},0,0,0]
[" ",null,"С","Обоснование выбора основных туристских услуг в ходе презентации программы индивидуального тура","","",null,5,{"v":0.5,"d":"0.50"},{"$nulls":4},0,0,0]
[{"$nulls":3},"",0,"Выбор основных туристских услуг не обоснован и не раскрыт в презентации",{"$nulls":7},0,0,0]
[{"$nulls":3},"",1,"В ходе презентации не все туристские услуги были обоснованы",{"$nulls":7},0,0,0]
[{"$nulls":3},"",2,"Выбор всех основных туристских услуг обоснован, но аргументация недостаточно убедительная",{"$nulls":7},0,0,0]
[{"$nulls":3},"",3,"Выбор основных туристских услуг обоснован и раскрыт в ходе презентации полностью",{"$nulls":7},0,0,0]
[9,"Выявление потребностей клиента по формированию программы индивидуального тура","С","Соответствие нормам делового общения в процессе переговоров с Заказчиком","","",null,1,{"v":0.5,"d":"0.50"},{"$nulls":4},0,0,0]
[{"$nulls":3},"",0,"Контакт не установлен, участник безынициативно ведет диалог, отвечает на вопросы или реплики туриста, испытывает серьезные затруднения в аргументации собственной позиции. Участник использовали менее 50% представленного времени на переговоры.",{"$nulls":7},0,0,0]
[{"$nulls":3},"",1,"Не соблюдены базовые правила делового общения (участник не поздоровался перед началом переговоров, не проявил инициативу в продолжении общения с туристом, не  обращается к туристу по имени, фамильярен  или зажат в общении, перебивает  туриста в процессе общения, речь в основном монологичная. Превышен лимит времени",{"$nulls":7},0,0,0]
[null,null," ","",2,"Участник проявляет инициативу в диалоге с туристом, в вопросах присутствует обращение к клиенту. Участник умеет слушать и слышать клиента. Отсутствует зажатость в разговоре. Установлен зрительный контакт. Чувствуется настрой на диалог с туристом. Лимит времени не превышен.",{"$nulls":7},{"$f":"IF($H587=N$7,$I587,0)","v":0},0,0]
[null,null," ","",3,"Полный контакт установлен. Высшая степень эмпатии, со стороны участника проявлено полное  понимание и внимание к потребностям другой стороны переговоров.",{"$nulls":7},0,0,0]
[null,null,"С","Качество постановки вопросов клиенту по заказу","","",null,1,{"v":0.3,"d":"0.30"},{"$nulls":4},0,0,0]
[{"$nulls":3},"",0,"Вопросы отсутствуют.",{"$nulls":7},0,0,0]
[{"$nulls":3},"",1,"Непоследовательность в вопросах, вопросы дублируют первичную заявку, неконкретные короткие вопросы.",{"$nulls":7},0,0,0]
[" ",null," ","",2,"Отсутствует логика в постановке вопросов, уточнены детали отсутствующие в первичной заявке, однако, произошло уточнение заказа в целом.",{"$nulls":7},0,0,0]
[{"$nulls":3},"",3,"Профессиональная грамотность и корректность в постановке вопросов, акцентированность вопросов на требованиях и пожеланиях заказчика, уточнение всех отсутствующих деталей в первичной заявке",{"$nulls":7},0,0,0]
[null,null,"И","Выявлены потребности туристов по срокам путешествия",null,"ДА/НЕТ",null,4,{"v":0.1,"d":"0.10"},{"$nulls":4},0,0,0]
[null,null,"И","Выявлены потребности туристов по  продолжительности путешествия ",null,"ДА/НЕТ",null,4,{"v":0.1,"d":"0.10"},{"$nulls":4},0,0,0]
[null,null,"И","Выявлены потребности туристов по организации доставки туристов до региона(страны) посещения (способы перевозки, класс обслуживания, наличие багажа) ",null,"ДА/НЕТ",null,4,{"v":0.1,"d":"0.10"},{"$nulls":4},0,0,0]
[null,null,"И","Выявлены потребности туристов по организации транспортного обслуживания в регионе пребывания туристов",null,"ДА/НЕТ",null,4,{"v":0.1,"d":"0.10"},{"$nulls":4},0,0,0]
[null,null,"И","Выявлен полный состав и возраст туристов (в зависимости от специфики заказа)",null,"ДА/НЕТ",null,4,{"v":0.1,"d":"0.10"},{"$nulls":4},0,0,0]
[null,null,"И","Выявлены потребности туристов по размещению (категория средства размещения,  особенности инфраструктуры, расположение ) ",null,"ДА/НЕТ",null,4,{"v":0.1,"d":"0.10"},{"$nulls":4},0,0,0]
[null,null,"И","Выявлены потребности туристов по условиям размещения  (количество номеров, категория и тип номера, инфрастуктура номера ( при необходимости)) ",null,"ДА/НЕТ",null,4,{"v":0.1,"d":"0.10"},{"$nulls":4},0,0,0]
[null,null,"И","Выявлены  потребности туристов по организации питания  ( режим питания, особенности кухни, другие особенности(при необходимости). ",null,"ДА/НЕТ",null,4,{"v":0.1,"d":"0.10"},{"$nulls":4},0,0,0]
[null,null,"И","Выявлены особые пожелания туристов ",null,"ДА/НЕТ",null,4,{"v":0.2,"d":"0.20"},{"$nulls":4},0,0,0]
[null,null,"И","Выявлены индивидуальные  пожелания туристов (при необходимости)",null,"ДА/НЕТ",null,4,{"v":0.2,"d":"0.20"},{"$nulls":4},0,0,0]
[null,null,"И","Выявлены потребности туристов связанные с дополнительными услугами ( страхование, эскурсовод/сопровождение(при необходимости)) ",null,"ДА/НЕТ",null,4,{"v":0.1,"d":"0.10"},{"$nulls":4},0,0,0]
[null,null,"И","Выявлены потребности туристов связанные с туристскими формальностями ( виза, паспорта(при необходимости) ) ",null,"ДА/НЕТ",null,4,{"v":0.1,"d":"0.10"},{"$nulls":4},0,0,0]
[10,"Расчет себестоимости и  стоимости нового туристского продукта "," "," ",{"$nulls":3},"",""]
[null,null,"И","Представлены расчеты себестоимости транспортных услуг","","ДА\\НЕТ",null,4,{"v":0.2,"d":"0.20"}]
[null,null,"И","Учтены все составляющие транспортного обслуживания  по маршруту при расчете себестоимости","","ДА\\НЕТ",null,4,{"v":0.1,"d":"0.10"}]
[null,null,"И","Арифметические операции при расчете себестоимости  транспортных услуг произведены,  верно","","ДА\\НЕТ",null,4,{"v":0.2,"d":"0.20"}]
[null,null,"И","Представлены  расчеты себестоимости услуг размещения и проживания","","ДА\\НЕТ",null,4,{"v":0.2,"d":"0.20"}]
[" ",null,"И","Учтены все объекты размещения по программе тура при расчете себестоимости размещения","","ДА\\НЕТ",null,4,{"v":0.1,"d":"0.10"}]
[null,null,"И","При расчете размещения и проживания учтены следующие   факторы: количество дней/ночей, категории номеров","","При расчете размещения и проживания учтено количество дней/ночей;\nПри расчете размещения и проживания учтены категории номеров",null,4,{"v":0.2,"d":"0.20"}]
[null,null,"И","Арифметические операции при расчете себестоимости размещения и проживания произведены,  верно","","ДА\\НЕТ",null,4,{"v":0.2,"d":"0.20"}]
[null,null,"И","Представлены расчеты себестоимости питания","","ДА\\НЕТ",null,4,{"v":0.2,"d":"0.20"}]
[null,null,"И","Учтены все предприятия питания по программе тура при расчете себестоимости питания","","ДА\\НЕТ",null,4,{"v":0.1,"d":"0.10"}]
[null,null,"И","Арифметические операции при расчете себестоимости питания произведены,  верно","","ДА\\НЕТ",null,4,{"v":0.2,"d":"0.20"}]
[null,null,"И","Представлены расчеты себестоимости  экскурсионного обслуживания","","ДА\\НЕТ",null,4,{"v":0.2,"d":"0.20"}]
[null,null,"И","Учтены все экскурсионные услуги, входящие в  программу турпродукта","","ДА\\НЕТ",null,4,{"v":0.1,"d":"0.10"}]
[null,null,"И","Арифметические операции при расчете себестоимости экскурсионного обслуживания произведены,  верно","","ДА\\НЕТ",null,4,{"v":0.2,"d":"0.20"}]
[" ",null,"И","Представлен расчет  себестоимости дополнительных  услуг по туру","","ДА\\НЕТ",null,4,{"v":0.2,"d":"0.20"}]
[null,null,"И","Учтены иные услуги, входящие в  программу тура (услуги страхования и т.п.)","","ДА/НЕТ",null,4,{"v":0.1,"d":"0.10"}]
[null,null,"И","Арифметические операции при расчете себестоимости иных услуг по туру  произведены,  верно","","ДА\\НЕТ",null,4,{"v":0.2,"d":"0.20"}]
[null,null,"И","Представлена итоговая себестоимость тура на группу/человека","","ДА\\НЕТ",null,4,{"v":0.2,"d":"0.20"}]
[null,null,"И","Арифметические операции при расчете себестоимости тура на группу/человека произведены,  верно","","ДА\\НЕТ",null,4,{"v":0.2,"d":"0.20"}]
[null,null,"И","Представлена итоговая стоимость тура на группу/человека","","ДА\\НЕТ",null,4,{"v":0.2,"d":"0.20"}]
[null,null,"И","В ценовой структуре турпродукта учтена наценка туроператора","","ДА\\НЕТ",null,4,{"v":0.1,"d":"0.10"}]
[null,null,"И","В ценовой структуре турпродукта учтено вознаграждение турагента","","ДА\\НЕТ",null,4,{"v":0.1,"d":"0.10"}]
[null,null,"И","Ценовая структура турпродукта в процентном соотношении представлена в соответствии с практикой российского турбизнеса","","ДА\\НЕТ",null,4,{"v":0.1,"d":"0.10"}]
[11,"Разработка и оформление Памятки туристу"," ",null," "," ",null,"","",{"$nulls":4},{"$f":"IF($H629=N$7,$I629,0)","v":""},"",""]
[null,null,"И"," Представлена информация о документах необходимых для осуществления поездки  ","","ДА/НЕТ "," ",4,{"v":0.1,"d":"0.10"},{"$nulls":4},0,0,0]
[null,null,"И"," Информация о документах необходимых для осуществления поездки представлена верно и в полном объеме","","ДА/НЕТ "," ",4,{"v":0.1,"d":"0.10"},{"$nulls":4},0,0,0]
[null,null," И","Представлена  информация о туристских формальностях ( таможенном, визовом и паспортном контроле) (при необходимости)  ","","ДА/НЕТ",null,4,{"v":0.1,"d":"0.10"},{"$nulls":4},0,0,0]
[null,null," И","Информация о туристских формальностях ( таможенном, визовом и паспортном контроле) (при необходимости) представлена верно и в полном объеме ","","ДА/НЕТ",null,4,{"v":0.1,"d":"0.10"},{"$nulls":4},0,0,0]
[null,null," И","Представлена информация о природно-климатических особенностях региона (места) временного пребывания  ","","ДА/НЕТ",null,4,{"v":0.1,"d":"0.10"},{"$nulls":4},0,0,0]
[null,null," И","Представлена  информация о национально-религиозных особенностях региона (места) временного пребывания  ","","ДА/НЕТ",null,4,{"v":0.1,"d":"0.10"},{"$nulls":4},0,0,0]
[null,null," И","Представлена  информация о  языковых и социо-культурных  особенностях региона (места) временного пребывания  ","","ДА/НЕТ",null,4,{"v":0.1,"d":"0.10"},{"$nulls":4},0,0,0]
[null,null," И","Представлена информация и гастрономических особенностях региона (места) временного пребывания  ","","ДА/НЕТ",null,4,{"v":0.1,"d":"0.10"},{"$nulls":4},0,0,0]
[null,null,"И"," Представлена информация об основных брендах, главных достопримечательностях региона пребывания.","","ДА/НЕТ ",null,4,{"v":0.1,"d":"0.10"},{"$nulls":4},0,0,0]
[null,null," И"," Представлена информация о названии тура","","ДА/НЕТ",null,4,{"v":0.1,"d":"0.10"},{"$nulls":4},0,0,0]
[null,null,"И","Представлена информация о схеме (нитке) маршрута и перевозках по программе индивидуального тура","","ДА/НЕТ ",null,4,{"v":0.1,"d":"0.10"},{"$nulls":4},0,0,0]
[null,null," И"," Приедставлена информация об особенностях транспортного обслуживания в регионе пребывания","","ДА/НЕТ",null,4,{"v":0.1,"d":"0.10"},{"$nulls":4},0,0,0]
[null,null," И","Представлена актуальная информация о денежных операциях в регионе пребывания(при необходимости) ","","ДА/НЕТ",null,4,{"v":0.1,"d":"0.10"},{"$nulls":4},0,0,0]
[null,null,"И","Представлена контактная информация (гид-сопровождающий, менеджеры принимающей стороны, контактная информация туроператора/турагента и т.п.)","","ДА/НЕТ ",null,4,{"v":0.1,"d":"0.10"},{"$nulls":4},0,0,0]
[null,null,"И","Верно представлена информация о датах тура ","","ДА/НЕТ"," ",4,{"v":0.1,"d":"0.10"},{"$nulls":4},0,0,0]
[null,null,"И","Верно представлена информация о нормах провоза багажа, жидкостей и т.д ( при необходимости)",""," ДА/НЕТ","  ",4,{"v":0.1,"d":"0.10"},{"$nulls":4},0,0,0]
[null,null,"И","Представлена верно информация о часовом поясе региона посещения ","","ДА/НЕТ "," ",4,{"v":0.1,"d":"0.10"},{"$nulls":4},0,0,0]
[null,null,"И","Представлена  информация о  месторасположение средств размещения (адрес, точка на карте)",""," ДА/НЕТ"," ",4,{"v":0.1,"d":"0.10"},{"$nulls":4},0,0,0]
[null,null,"И","Представлена информация о названии и категории   средств размещения ",""," ДА/НЕТ"," ",4,{"v":0.1,"d":"0.10"},{"$nulls":4},0,0,0]
[null,null,"И","Верно представлена информация о check in\\check out.",""," ДА/НЕТ"," ",4,{"v":0.1,"d":"0.10"},{"$nulls":4},0,0,0]
[" ",null," И","Представлена актуальная информация по безопасности в регионе пребывания. Указаны телефоны экстренных служб","","ДА/НЕТ "," ",4,{"v":0.1,"d":"0.10"},{"$nulls":4},0,0,0]
[" ",null," И","Представлена иная полезная  информация  для туристов ( адреса телефоны консульства, посольства и т.д.) в случае необходимости","","ДА/НЕТ "," ",4,{"v":0.1,"d":"0.10"},{"$nulls":4},0,0,0]
[null,null," И","Даны общие рекомендации личной безопасности, сохранности здоровья и имущества туристов","","ДА/НЕТ ",null,4,{"v":0.1,"d":"0.10"},{"$nulls":4},0,0,0]
[null,null," И","Даны общие рекомендации по покупкам и сувенирной продукции региона ","","ДА/НЕТ ",null,4,{"v":0.1,"d":"0.10"},{"$nulls":4},0,0,0]
[null,null," И","Представлена  информация о телефонной связи и особенностях коммуникации с использованием иных средств связи","","ДА/НЕТ ",null,4,{"v":0.1,"d":"0.10"},{"$nulls":4},0,0,0]
[null,null,"И","Соблюдены общие требования к оформлению памятки туристу ( TNR, 12 размер, интервал: 1.0, выравнивание по ширине. Не более 3 страниц",""," ДА/НЕТ",null,4,{"v":0.1,"d":"0.10"},{"$nulls":4},0,0,0]
[12,"Качество презентации"]
[null,null,"И","Наличие в презентации указания на использованные в подготовке презентации открытых актуальных источников (не менее 4)","","ДА\\НЕТ",null,3,{"v":0.2,"d":"0.20"}]
[" "," ","И","Презентация не превысила выделенный лимит времени (тайм-менеджмент)","","ДА\\НЕТ",null,8,{"v":0.2,"d":"0.20"}]
[null,null,"И","Время, выделенное на презентацию  использовано более чем на 95%","","ДА\\НЕТ",null,8,{"v":0.2,"d":"0.20"}]
[null,null,"С","Оформление презентации",{"$nulls":3},8,{"v":0.5,"d":"0.50"}]
[{"$nulls":4},0,"Отсутствует единый стиль оформления, структура и логика. Присутствуют грамматические ошибки на слайдах, , текст читается с трудом (мелкий шрифт, разные и сливающиеся шрифты, неприемлемая контрастность фона и шрифта)."]
[{"$nulls":4},1,"Частично соблюден единый стиль оформления презентации. Частично присутстсвует структура и логика построения презентации. Информация написана орфографически грамотно, текст хорошо читается (разборчивость и читаемость букв, слов, фраз), используется единый тип шрифта. "]
[{"$nulls":4},2,"Единый стиль оформления. Присутстсвует структура и логика построения презентации. Информация в презентации написана орфографически грамотно, текст хорошо читается (разборчивость и читаемость букв, слов, фраз), используется единый тип шрифта."]
[{"$nulls":4},3,"Профессиональная презентация, имеет четкую структуру и логику построения презентации. Информация написана орфографически грамотно, единый стиль оформления, текст хорошо читается (разборчивость и читаемость букв, слов, фраз), используется единый тип шрифта. Присутствуют дополнительные графические и визуальные элементы оформления, соответствующие тематике задания "]
[null,null,"С","Качество выступления",{"$nulls":3},8,{"v":0.5,"d":"0.50"},8,{"$nulls":3},{"$f":"IF($H665=N$7,$I665,0)","v":0},0,0]
[{"$nulls":4},0,"Участник читает с листов и/или со слайдов большую часть презентации",{"$nulls":7},0,0,0]
[{"$nulls":4},1,"Участник изредка обращается к вспомогательным материалам",{"$nulls":7},0,0,0]
[{"$nulls":4},2,"Участник свободно излагает информацию, без использования вспомогательных материалов",{"$nulls":7},0,0,0]
[{"$nulls":4},3,"Участник не читает с листов и/или со слайдов, коммуницируют с аудиторией/экспертами и встраивант реакции//ответы аудитории в свою презентацию",{"$nulls":7},0,0,0]
[null,null,"С","Культура речи","","",null,1,{"v":0.7,"d":"0.70"}]
[{"$nulls":3},"",0,"Отсутствие культуры речи .В презентации не использована специальная терминология, не продемонстрировано владение понятийным аппаратом",null,null," "]
[" ",null," ","",1,"В выступлении частично присутствуют речевые и стилистические ошибки.  В презентации частично использована специальная терминология и слабо продемонстрировано владение понятийным аппаратом"]
[{"$nulls":3},"",2,"В выступлении  соблюдены базовые этико-речевые нормы. Грамотно и уместно используются специальные термины, понятия, географические названия."]
[{"$nulls":3},"",3,"Высокий уровень культуры речи Полностью соблюдаются этико-речевые нормы.Высокая степень владения понятийным аппаратом и специальной терминологией."]
[null,null,"С","Смысловое единство и  логика выступления .","","",null,1,{"v":0.5,"d":"0.50"}]
[{"$nulls":3},"",0,"Отсутствие   смыслового единства и логики выступления.",null,null," "]
[null,null," ","",1,"В выступлении частично прослеживается взаимосвязь смыслового единства и логики."]
[{"$nulls":4},2,"Выступление в целом логично, но не в полном объеме структурировано по смыслу."]
[{"$nulls":3},"",3," Выступление имеет единый стиль, смысл, логику"]
[13,"Охрана труда"," "," ","","",null," "," "]
[null,null,"И","В ходе выполнения модуля КЗ участником были соблюдены базовые требования охраны труда и техники безопасности   "," "," ДА/НЕТ",null,7,{"v":0.5,"d":"0.50"}]
["Д"," Специальное задание ",{"$nulls":6},{"$f":"SUM(I684:I760)","v":{"v":8,"d":"8.00"}}]
[1,"Специальное задание "]
[null,null,"С","Продемонстрированы  навыки  формулировать уточняющие вопросы по специальному заданию","","",null,3,{"v":0.3,"d":"0.30"}]
[{"$nulls":3},"",0,"Не было попытки сформулировать уточняющие вопросы"]
[{"$nulls":3},"",1,"Вопросы сформулированы, но не в полном объеме с минимумом содержательной информации."]
[{"$nulls":3},"",2,"Вопросы сформулированы, в полном объеме, но не отражают суть поставленной задачи."]
[{"$nulls":3},"",3,"Вопросы сформулированы в полном объеме, точно и по существу задания."]
[" ",null,"С","Продемонстрированы  навыки формулировать доводы и обоснованные аргументы в ответ на вопросы экспертов","","",null,3,{"v":0.7,"d":"0.70"}]
[{"$nulls":3},"",0,"Ответы на вопросы экспертов отсутствуют или не соответствуют  содержанию специального задания"]
[{"$nulls":3},"",1,"В ответах на вопросы присутствует частичная аргументация, но представленные доводы не в полной мере соответствуют   содержанию специального задания"]
[{"$nulls":3},"",2,"Ответы на вопросы в целом обоснованные, аргументированные, но представленные доводы не в полной мере соответствуют  содержанию специального задания"]
[{"$nulls":3},"",3,"Ответы на вопросы обоснованные, аргументированные, представленные доводы полностью соответствуют содержанию специального задания."]
[null,null,"С","Продемонстрирована оригинальность предложенных идей, новизна, способность креативно подходить к решению творческих задач","","",null,2,{"v":0.6,"d":"0.60"}]
[{"$nulls":3},"",0,"Выступление не содержит новые оригинальные идеи, не продемонстрирован творческий подход к решению поставленных задач"]
[null,null," ","",1,"Выступление частично содержит новые оригинальные идеи, творческий подход к решению поставленных задач продемонстрирован не в полной мере"]
[{"$nulls":3},"",2,"Выступление, в большей части, содержит  оригинальные идеи, продемонстрирован творческий подход к решению поставленных задач"]
[{"$nulls":3},"",3,"Выступление содержит новые оригинальные  идеи, обоснованные конкретные выводы, творческий подход к решению поставленных задач",null,null," "]
[null,null,"С","В ответах участников присутствует качество, полнота и   глубокое понимание специфики профессиональной деятельности в сфере туризма ","","",null,3,{"v":0.7,"d":"0.70"},{"$nulls":4},{"$f":"IF($H699=N$7,$I699,0)","v":0},0,0]
[{"$nulls":3},"",0,"Полное отсутствие понимания специфики профессиональной деятельности в сфере туризма",{"$nulls":7},0,0,0]
[" ",null," ","",1,"Участник не в полной мере способен мыслить стратегически в области своей   профессиональной деятельности. ",{"$nulls":7},0,0,0]
[{"$nulls":3},"",2,"Участник в целом способен мыслить стратегически в области своей   профессиональной деятельности в сфере туризма ",{"$nulls":7},0,0,0]
[{"$nulls":3},"",3," Умение видеть тренды и перспективы развития сферы туризма, как в рамках страны, так и за ее пределами.  ",{"$nulls":7},0,0,0]
[null,null,"С","Присутствует качество, полнота и   глубокое понимание проблем в сфере туризма  ","","",null,3,{"v":0.6,"d":"0.60"},{"$nulls":4},0,0,0]
[{"$nulls":3},"",0,"Полное отсутствие  видения проблем  в сфере туризма, отсутствия навыков анализа ситуации.",{"$nulls":7},0,0,0]
[" ",null," ","",1,"У участника проявлены умения видеть проблемы  развития в сфере туризма  на региональном уровне.  В процессе презентации слабо проявлены   способности к анализу проблемы.",{"$nulls":7},0,0,0]
[{"$nulls":3},"",2,"У участника проявлены умения видеть проблемы в сфере туризма  на внутреннем рынке, без учета ситуации в мире. В процессе презентации в основном проявлены   способности к анализу проблемы.",{"$nulls":7},0,0,0]
[{"$nulls":3},"",3," У участника проявлены умения видеть проблемы  развития сферы туризма, как в рамках страны, так и за ее пределами. В процессе презентации в целом проявлены   способности к анализу проблемы.",{"$nulls":7},0,0,0]
[null,null,"С"," Продемонстированы знания и понимание законодательных основ, нормативной и правовой документация в сфере туризма и гостеприимства","","",null,1,{"v":0.5,"d":"0.50"},{"$nulls":4},0,0,0]
[{"$nulls":3},"",0,"У конкурсанта отстутствуют знания и понимание законодательных и правовых основ деятельности в сфере туризма и гостеприимства",{"$nulls":7},0,0,0]
[null,null," ","",1," У конкурсанта частично пристутствуют знания и понимание законодательных и правовых основ деятельности в сфере туризма и гостеприимства",{"$nulls":7},0,0,0]
[{"$nulls":3},"",2," У конкурсанта в основном пристутствуют знания и понимание законодательных и правовых основ деятельности в сфере туризма и гостеприимства",{"$nulls":7},0,0,0]
[{"$nulls":3},"",3,"Конукурсант в высшей степени проявляет  знания и понимание законодательных и правовых основ деятельности в сфере туризма и гостеприимства, находится в курсе новых законодательных инициатив и предложений  ",{"$nulls":7},0,0,0]
[null,null,"С","Культура речи","","",null,1,{"v":0.6,"d":"0.60"}]
[{"$nulls":3},"",0,"Отсутствие культуры речи .В презентации не использована специальная терминология, не продемонстрировано владение понятийным аппаратом"]
[null,null," ","",1,"В выступлении частично присутствуют речевые и стилистические ошибки.  В презентации частично использована специальная терминология и слабо продемонстрировано владение понятийным аппаратом"]
[{"$nulls":3},"",2,"В выступлении  соблюдены базовые этико-речевые нормы. Грамотно и уместно используются специальные термины, понятия, географические названия."]
[{"$nulls":3},"",3,"Высокий уровень культуры речи Полностью соблюдаются этико-речевые нормы.Высокая степень владения понятийным аппаратом и специальной терминологией. "]
[null,null,"С","Смысловое единство и логика выступления.","","",null,1,{"v":0.5,"d":"0.50"}]
[{"$nulls":3},"",0,"В выступлении отсутствует смысловое единство и логика."]
[" ",null," ","",1,"В выступлении частично прослеживается взаимосвязь единства и логики, речь частично отвечает задачам и целям деловой презентации."]
[{"$nulls":3},"",2,"Выступление в целом логично, но не в полном объеме структурировано по смыслу."]
[{"$nulls":3},"",3,"Выступление имеет единый стиль, смысл, логику."]
[null,null,"С","Продемонстрированы  навыки успешной коммуникации.","","",null,1,{"v":0.4,"d":"0.40"}]
[{"$nulls":3},"",0,"Навыки успешной коммуникации  продемонстрированы на низком уровне. Отсутствует  доверительное, взаимовыгодное общение. Не используются средства невербальной коммуникации."]
[null,null," ","",1,"Навыки успешной коммуникации продемонстрированы частично. Уровень эмпатии низкий. При презентации чувствуется эмоциональное напряжение. Используются лишь некоторые способы невербальной коммуникации."]
[{"$nulls":3},"",2,"Навыки успешной коммуникации продемонстрированы в целом. Участник обладает   умением слушать вопросы, способен сконцентрироваться и воспринять информацию. Уровень эмпатии средний. Во время выступления заметна Гибкость и способность искать компромиссы. При выступлении используются средства невербальной коммуникации."]
[{"$nulls":3},"",3,"Высокий уровень демонстрации успешной коммуникации.  Конкурсан не только способен сконцентрироваться и воспринять информацию, но и способен задать уточняющий вопрос, использовать приёмы перефразирования («т.е. вы имели в виду...»), непонимания, резюмирования.  Участник ввладеет в совершенстве средствами невербальной коммуникации."]
[null,null,"С","Продемонстрированы  навыки публичной презентации.","","",null,1,{"v":0.4,"d":"0.40"}]
[{"$nulls":3},"",0," Навыки публичной презентации продемонстрированы на низком уровне. Отсутствуют навыки работы с дополнительными методами и приемами, которые обеспечивают более эффективное представление информации."]
[" ",null," ","",1," Навыки публичной презентации продемонстрированы частично. Частично используются  во время презентации навыки работы с дополнительными методами и приемами, которые обеспечивают более эффективное представление информации."]
[{"$nulls":3},"",2," Навыки публичной презентации продемонстрированы в целом. "]
[{"$nulls":3},"",3," Высокий уровень публичной презентации. В высшей степени полезно используют   во время презентации навыки работы с дополнительными методами и приемами, которые  обеспечивают более эффективное представление информации"]
[null,null,"С","Широта кругозора и уровень эрудиции участника.","","",null,1,{"v":0.4,"d":"0.40"}]
[{"$nulls":3},"",0,"Отсутствие глубоких и всесторонних познаний в области туризма и гостеприимства. Кругозор, широта интересов и взглядов не проявлен. "]
[null,null," ","",1,"Всесторонние познания в области туризма и гостеприимства и смежных областях  выражены на среднем уровне.Кругозор, широта интересов и взглядов, информированность, компетентность, интеллект проявлены частично. "]
[{"$nulls":3},"",2,"Участник на хорошем уровне продемонстрировал всесторонние познания в области туризма и гостеприимства и смежных областях.Проявлены признаки эрудированности, широта интересов и взглядов, информированность.    "]
[{"$nulls":3},"",3," Проявлены глубокие и всесторонние познания в  области туризма и гостеприимства и смежных  областях. Высочайший уровень эрудированности, широкий кругозор и широта интересов."]
[null,null,"С","Продемонстрирована мотивация участника к участию в решении предложенных проблемных ситуаций, а также способность к рефлексии как способу отслеживать  личностное и профессиональное развитие","","",null,2,{"v":0.5,"d":"0.50"}]
[{"$nulls":3},"",0,"Мотивация участника к участию в решении предложенных проблемных ситуаций отсутствует. Отсутствует опыт и знания либо не было попытки отслеживать личностное и профессиональное развитие"]
[{"$nulls":3},"",1,"Мотивация участника к участию в решении предложенных проблемных ситуаций низкая. Есть знания о движении, но нет понимания специфики карьеры с учетом полученных личностных и профессиональных навыков"]
[{"$nulls":3},"",2,"Мотивация участника к участию в решении предложенных проблемных ситуаций проявлена на среднем уровне. Есть знания и опыт личностного и профессионального роста"]
[{"$nulls":3},"",3,"Предельная мотивация участника к участию в решении предложенных проблемных ситуаций. Высокая мотивация на профессиональный рост и карьеру."]
[null,null,"С","Стрессоустойчивость и конфликтоустойчивость, продемострированные участником в  в процессе общения с экспертами",{"$nulls":3},7,{"v":0.5,"d":"0.50"},{"$nulls":4},{"$f":"IF($H744=N$7,$I744,0)","v":0},0,0]
[null," ",null,null,0," Участник эмоционально реагирует на поступающие вопросы экспертов, демонстрирует раздражительность, неприветлив",{"$nulls":7},0,0,0]
[null," ",null,null,1," Участник машинально отвечает на вопросы, не поддерживает беседу. При общении иногда замыкается в себе",{"$nulls":7},0,0,0]
[null," ",null,null,2,"Участник приветлив, поддерживает контакт с экспертами. При общении изредка замыкается в себе (теряет контакт с клиентом).",{"$nulls":7},0,0,0]
[null," ",null,null,3,"Участник приветлив, поддерживает контакт с экспертами и удерживает контакт с ними до конца собеседования.",{"$nulls":7},0,0,0]
[null,null,"С","Качество выступления",{"$nulls":3},8,{"v":0.5,"d":"0.50"}," "]
[{"$nulls":4},0,"Участники читают с листов и/или со слайдов большую часть презентации"]
[{"$nulls":4},1,"Участники изредка обращаются к вспомогательным материалам"]
[{"$nulls":4},2,"Участники свободно излагают информацию, без использования вспомогательных материалов"]
[{"$nulls":4},3,"Участники не читают с листов и/или со слайдов, участники коммуницируют с аудиторией/экспертами и встраивают реакци//ответы аудитории в свою презентацию"]
[null,null,"С","Соблюдение участником делового корпоративного (единого) стиля в одежде","","",null,1,{"v":0.3,"d":"0.30"}]
[{"$nulls":3},"",0,"Деловой корпоративный (единый) стиль во внешнем виде участника отсутствует"]
[{"$nulls":3},"",1,"Деловой стиль соблюден, но отсутствует корпоративный (единый) стиль  "]
[{"$nulls":3},"",2,"Деловой корпоративный (единый) стиль в целом соблюден участником , но имеются несоответствия деловому стилю."]
[{"$nulls":3},"",3,"Деловой корпоративный (единый) стиль  во внешнем виде полностью соблюден участником."]
[2,"Охрана труда"," "," ","","",null," "," "]
[null,null,"И","В ходе выполнения модуля КЗ участником были соблюдены базовые требования охраны труда и техники безопасности   "," "," ДА/НЕТ",null,7,{"v":0.5,"d":"0.50"}]
[{"$nulls":5},"Итого",null,null,{"$f":"I6+I175+I293+I486+I682","v":{"v":99.99999999999999,"d":"100.00"}}]

{"sheet":"Перечень профессиональных задач","index":1,"n_rows":9,"n_cols":2,"rows_kept":9,"merged":[[0,0,0,1]]}
["Перечень профессиональных задач"]
[1,"Коммуникация и публичные выступления"]
[2,"Творчество и качество турпродукта"]
[3,"Менеджмент и аналитика"]
[4,"Документация, прикладные и профессиональными программы"]
[5,"Технологии разработки и формирования туристских продуктов"]
[6,"Технологии продвижения и реализации туристских продуктов"]
[7,"Охрана труда"]
[8," Бережливое производство"]